Workbook

Sheet Cover Page
D1: Add company logo
N2: Version 23.4a (for incinerators) - 15/11/2023
N4: Note that there is another version of this template available for co-incinerators
B8: Add photo
N13: Notes:
N14: This template may require adjustments by individual operators to meet specific reporting requirements as defined in the site Permit(s)
B29: Annual Performance Report 2023
B31: Permit EPR/WP3239SJ
B33: Tyseley Energy from Waste Plant
B37: Veolia ES Birmingham Limited
B39: Year: | C39: 2023
B41: Address: | C41: James Road, Tyseley, Birmingham, B11 2BA
B43: Tel: | C43: 0203 9567 3740
B45: Email: | C45: christine.skaramaga@veolia.com
B47: Prepared by: | C47: Christine Skaramaga | F47: Position: | G47: Senior Environmental Engineer
B49: Approved by: | C49: Scott Francis | F49: Position: | G49: Head of ERF Operations & Maintenance North
B51: Version: | C51: 1
B53: Issue Date: | C53: 2024-01-30

Sheet Contents
A1: =+'Cover Page'!$B$29 -> Annual Performance Report 2023 | E1: =+'Cover Page'!$B$33 -> Tyseley Energy from Waste Plant
A3: Contents | K3: Notes:
A4: Section | B4: Subject | H4: Page | K4: Section references and Page nos. to be inserted
B5: Facility Information | H5: 3 | K5: Sections and Subjects may require adjustment by individual operators to meet specific reporting requirements as defined in the sites Permit(s)
B6: Operational Data | H6: 4
B7: Operational Summary | H7: 6
B8: Performance Form 1 | H8: 7
B9: Energy Form 1 | H9: 8
B10: Permit Compliance | H10: 9
B11: Improvements | H11: 10
B12: Public Liasion | H12: 11
B13: Carbon dioxide and nitrous oxide emissions | H13: 12
B14: Residue Quality | H14: 14
B15: Emissions to Water | H15: 15
B16: Emissions to Air (periodically monitored) | H16: 16
B17: Emissions to Air (continuously monitored) | H17: 20
B18: Hydrogen Chloride emissions | H18: 22
B19: Sulphur Dioxdie emsissions | H19: 23
B20: Oxides of Notrigen emissions | H20: 24
B21: Total Organic Carbon emissions | H21: 25
B22: Particulate Matter emissions | H22: 26
B23: Carbon Monoxide emissions | H23: 28
B24: Ammonia emissions | H24: 29
A27: Version Control
A28: Section | B28: Information | H28: Date
A35: Distribution
A36: Copy | B36: Name, Role | H36: No.
A37: 1 | B37: Sarah Dennis, EA Installations Technical Leader | H37: 1
A45: This report is required under the Industrial Emissions Directive’s Article 55(2) requirements on reporting and public information on waste incineration plants and co-incineration plants, which require the operator to produce an annual report on the functioning and monitoring of the plant and make it available to the public.

Sheet Facility Info
A1: =+'Cover Page'!$B$29 -> Annual Performance Report 2023 | E1: =+'Cover Page'!$B$33 -> Tyseley Energy from Waste Plant
A3: Plant Description and Design | K3: Notes:
A5: The main purpose of the activity carried out at this facility is to incinerate, primarily, Municipal Solid Waste (MSW) as defined by EWC 20 03 01, recovering energy in the form of steam and electricity generating 27 MW for export to the National Grid. The permit covers the site and the entire incineration process which includes all incineration lines, waste reception and storage, waste-fuel and air supply systems, boilers, facilities for the treatment of exhaust gases, on-site facilities for handling and storage of residues and operations, recording and monitoring conditions. | K5: Include summary of plant design, design capacity, no. of combustion lines, electrical and heat capacity and any other general information that descibes the facility, its location and purpose
A20: Summary of Operational Processes and Procedures
A22: This facility consists of two incineration lines, each capable of processing approximately 23.5 tonnes per hour, which takes approximately 350,000 tonnes of Birmingham’s waste each year but this, is dependent on two factors: actual operating hours and calorific value of the waste being burnt. The third incineration line processes clinical waste and other designated hazardous wastes (CWI) at a nominal rate of 600kg/hour. All emissions to air from the two 80m high chimneys are controlled to meet the emission limits included in the Environmental Permit. The flue gases released into the atmosphere are continuously monitored for Particulate Matter (total), TOC, Hydrogen Chloride, Oxides of Nitrogen, Carbon Monoxide, Ammonia, Sulphur Dioxide, Carbon Dioxide, Nitrous Oxide and flue gas flow. Bi-annual check monitoring of this equipment is carried out by approved contractors using indepent extractive sampling methods, at which time emissions of Heavy Metals, Dioxins and other substances are also monitored. The Continious Emissions Monitoring equipment (CEMs) was in service during 2023 for 100% of the plant operating time. This equipment is stringently monitored with routine calibration checks and is standardised to BS EN14181:2004. | K22: Include summary of key processes and procedures such as (but not limited to); waste reception, control rooms, grate, bed and bolier, energy & heat generation, cooling systems, residue management, emission controls, health and safety systems, maintenance

Sheet Operational Data
A1: =+'Cover Page'!$B$29 -> Annual Performance Report 2023 | E1: =+'Cover Page'!$B$33 -> Tyseley Energy from Waste Plant
A3: Operational Data
A4: Plant Size | B4: 440500 | D4: tonnes pa | F4: MWth | G4: 30 | H4: MWe | J4: Notes:
A5: No. of combustion lines | B5: 2 | D5: No. of Turbines: | F5: 1 | J5: * - RDF to include SRF
J6: ** - Combusted tonnage = tonnes delivered in period + (tonnes in bunker at start of period – tonnes in bunker at end of period), or equivalent calculation depending on plant type
A7: Waste types received | B7: Unit | C7: Q1 | D7: Q2 | E7: Q3 | F7: Q4 | G7: Year Total | H7: %
A8: Household / Local Authority | B8: tonnes | C8: 96039.568 | D8: 80004.004 | E8: 82434.651 | F8: 93453.463 | G8: =SUM(C8:F8) -> 351931.686 | H8: =IF(G8>0,G8/$G$18,"-") -> 0.9807929393
A9: Commercial & Industrial | C9: 780.29 | D9: 332.7073 | E9: 54.212 | F9: 65.446 | G9: =SUM(C9:F9) -> 1232.6553 | H9: 0.003435267874 | J9: *** - CHP plants only
A10: Hazardous | C10: 795.665 | D10: 594.224 | E10: 756.404 | F10: 843.278 | G10: 2989.571 | H10: 0.008331588899 | J10: **** Availability Definition: 'the availability of a line is to be calculated by the number of hours the line reported Continuously Monitored emission levels to the Regulator through the calendar year divided by the total number of hours in that year. The overall plant availability is calculated as the Mean of all lines in the plant. For clarity this includes periods of abnormal operation.' Rationale: The primary function of an Energy from Waste facility is the disposal of waste. It follows therefore that the availability of a plant is determined by the period of time a facility spends undertaking this activity.
A11: Clinical | C11: 625.616 | D11: 491.754 | E11: 754.705 | F11: 797.646 | G11: 2669.721 | H11: 0.007440203911
A12: Waste wood (biomass) | G12: 0 | H12: -
A13: Refuse Derived Fuel * - H'hold/LA | G13: =SUM(C13:F13) -> 0 | H13: -
A14: Refuse Derived Fuel * - C&I | G14: 0 | H14: -
A15: Other [Please specify] | G15: 0 | H15: -
A16: Other [Please specify] | G16: 0 | H16: -
A17: Other [Please specify] | G17: 0 | H17: -
A18: Total waste received | C18: =SUM(C8:C17) -> 98241.139 | D18: =SUM(D8:D17) -> 81422.6893 | E18: =SUM(E8:E17) -> 83999.972 | F18: =SUM(F8:F17) -> 95159.833 | G18: 358823.6333
A19: Rejected Waste | G19: =SUM(C19:F19) -> 0 | H19: =IF(G19>0,G19/$G$18,"-") -> -
A20: Unprocessed waste transferred out | G20: =SUM(C20:F20) -> 0 | H20: =IF(G20>0,G20/$G$18,"-") -> -
A21: Total waste combusted ** | C21: 99539.34 | D21: 73443.1 | E21: 91086.8 | F21: 98470.26645 | G21: =SUM(C21:F21) -> 362539.5065
J22: Password for protected cells A password has been set to prevent accidental editing of cells with formulae. If you still need to make an edit for some reason then the password = 1234
A23: Energy Usage / Export | B23: Unit | C23: Q1 | D23: Q2 | E23: Q3 | F23: Q4 | G23: Year Total | H23: KWh/te
A24: Power Generated | B24: MWh | C24: 57789 | D24: 38981 | E24: 18919 | F24: 50788 | G24: =SUM(C24:F24) -> 166477 | H24: =IF(G24>0,G24*1000/$G$21,"-") -> 459.1968518
A25: Power Exported | C25: 50512.35504 | D25: 33912.84165 | E25: 16194.9044 | F25: 44086.68298 | G25: =SUM(C25:F25) -> 144706.7841 | H25: =IF(G25>0,G25*1000/$G$21,"-") -> 399.1476281
A26: Power Used on site | C26: =C24-C25 -> 7276.64496 | D26: =D24-D25 -> 5068.158346 | E26: 2724.095598 | F26: 6701.317021 | G26: =SUM(C26:F26) -> 21770.21593 | H26: =IF(G26>0,G26*1000/$G$21,"-") -> 60.04922371
A27: Power Imported | C27: 8.2 | D27: 644.3825 | E27: 2713.1522 | F27: 0 | G27: 3365.7347 | H27: =IF(G27>0,G27*1000/$G$21,"-") -> 9.283773603
A28: Parasitic Load | B28: % | C28: =IF(C24>0,1-C25/(C24+C27),"-") -> 0.1260414858 | D28: =IF(D24>0,1-D25/(D24+D27),"-") -> 0.144163677 | E28: =IF(E24>0,1-E25/(E24+E27),"-") -> 0.2513502932 | F28: =IF(F24>0,1-F25/(F24+F27),"-") -> 0.1319468579 | G28: =IF(G24>0,1-G25/(G24+G27),"-") -> 0.1479954422
A29: Thermal Energy Produced *** | B29: MWh | G29: =SUM(C29:F29) -> 0 | H29: =IF(G29>0,G29*1000/$G$21,"-") -> -
A30: Thermal Energy Exported *** | G30: 0 | H30: =IF(G30>0,G30*1000/$G$21,"-") -> -
A31: R1 value (if applicable) | B31: R1 | G31: 0.62
A33: Waste Disposal & Recovery | B33: Unit | C33: Q1 | D33: Q2 | E33: Q3 | F33: Q4 | G33: Year Total | H33: % inputs
A34: APC Residues - produced | B34: tonnes | C34: 2388.32 | D34: 1682.6 | E34: 1918.2 | F34: 2224.58 | G34: =SUM(C34:F34) -> 8213.7 | H34: =IF(G34>0,G34/$G$21,"-") -> 0.02265601363
A35: IBA - produced | C35: 19893.85 | D35: 15737.32 | E35: 18257.55 | F35: 18906.95 | G35: 72795.67 | H35: =IF(G35>0,G35/$G$21,"-") -> 0.2007937582
A36: Metals recycling | C36: 1006.3 | D36: 780.3 | E36: 778.72 | F36: 1029.32 | G36: =SUM(C36:F36) -> 3594.64 | H36: 0.009915167688
A37: Interceptor waste | C37: 0 | D37: 56.68 | E37: 47.48 | F37: 140.24 | G37: =SUM(C37:F37) -> 244.4 | H37: 0.0006741334273
A38: Wooden packaging | C38: 0 | D38: 31.92 | E38: 23.1 | F38: 0 | G38: 55.02 | H38: 0.0001517627707
A39: Other | C39: 0 | D39: 0 | E39: 0 | F39: 0 | G39: 0 | H39: -
A41: Raw Material Usage | B41: Unit | C41: Q1 | D41: Q2 | E41: Q3 | F41: Q4 | G41: Year Total | H41: m3, kg , Ltr/te
A42: Mains Water | B42: m3 | C42: 42286 | D42: 33800 | E42: 43203 | F42: 44552.27523 | G42: =SUM(C42:F42) -> 163841.2752 | H42: =IF(G42>0,G42/$G$21,"-") -> 0.4519266792
A43: Other Water | B43: ltrs | G43: 0 | H43: =IF(G43>0,G43/$G$21,"-") -> -
A44: Ammonia | B44: kgs | C44: 104816 | D44: 92320 | E44: 158741.5 | F44: 210280 | G44: 566157.5 | H44: 1.5616436
A45: Urea | B45: kgs | G45: =SUM(C45:F45) -> 0 | H45: -
A46: Activated Carbon | B46: kgs | C46: 24992 | D46: 26424 | E46: 28026.152 | F46: 30600 | G46: 110042.152 | H46: 0.3035314774
A47: Lime / hydrated lime | B47: kgs | C47: 567880 | D47: 293900 | E47: 472620 | F47: 575500 | G47: 1909900 | H47: 5.268115518
A48: Fuel oil | B48: ltrs | C48: 205681 | D48: 306613 | E48: 505513.7157 | F48: 456846.3579 | G48: 1474654.074 | H48: 4.06756794
A49: Gas | B49: cuf | G49: 0
A50: Other | G50: 0
A52: Summary | B52: Line/Unit | C52: Q1 | D52: Q2 | E52: Q3 | F52: Q4 | G52: Year Total | I52: Hrs in year
A53: Availability of waste combustion by line, hrs **** | B53: 1 | C53: 2087.5 | D53: 1565 | E53: 2011.5 | F53: 2094.5 | G53: =SUM(C53:F53) -> 7758.5 | H53: =+G53/$I$53 -> 0.885673516 | I53: 8760
B54: 2 | C54: 2151 | D54: 1648.5 | E54: 2011 | F54: 2161.5 | G54: 7972 | H54: =+G54/$I$53 -> 0.9100456621
B55: 3 | G55: 0 | H55: 0
B56: 4 | G56: 0 | H56: 0
B57: 5 | G57: =SUM(C57:F57) -> 0 | H57: 0
A58: Overall Availability, mean avg. of all lines, hrs | C58: =AVERAGE(C53:C54) -> 2119.25 | D58: =AVERAGE(D53:D54) -> 1606.75 | E58: 2011.25 | F58: 2128 | G58: =AVERAGE(G53:G54) -> 7865.25 | H58: 0.897859589
A59: Hours of turbine operations, hrs | B59: 1 | C59: 2158 | D59: 1559.5 | E59: 1067 | F59: 2208 | G59: 6992.5 | H59: 0.7982305936
A60: Hours of turbine operations, hrs | B60: 2 | G60: 0 | H60: 0
A61: Hours of heat / steam export | G61: 0 | H61: =IF(B61>0,G60/I53,"n/a") -> n/a
A62: Net Calorific Value of waste | B62: MJ/kg
A63: Abnormal Events | B63: qty. | G63: 0 | H63: =IF(G63>0,"yes","no") -> no
A64: Abnormal operation | B64: hours | G64: 0 | H64: =+(G64)/I53 -> 0
A65: Permit Breaches | B65: qty. | E65: 1 | F65: 1 | G65: 2 | H65: =IF(G65>0,"yes","no") -> yes

Sheet Operational Summary
A1: =+'Cover Page'!$B$29 -> Annual Performance Report 2023 | E1: =+'Cover Page'!$B$33 -> Tyseley Energy from Waste Plant
A3: Summary of Plant Operations and Maintenance during the reporting year | K3: Notes:
A5: Annual outage and common unit outage Grates removed and replaced with new bars Chiller tubes fitted and aligned Furnace inconel membrane repairs Boiler tube replacements Plate work on all four walls of the vertical feed chute in between the damper door and the inclined hopper NDT survey on the water jacket and inconel header Ash chute and ash discharger clevis bearings replaced, clevis pin protection housing rebuilt Both ash discharger doors refurbished Boiler drum inspection and boiler drum safety valves sent away for service and testing Grizzly conveyor complete refurbishement of springs and arms Reactor tower cleaning Air heaters opened and cleaned Bag house chambers NDT inspection 11kV and 132kV inspections 3.3kV HV Switchboard replacement ID fan motor inspection Steam turbine and gearbox inspection Generator testing and electrical testing Feed pumps testing and inspection Burner control panels replacement including operating equipment, interfaces & sensors Stack inspection, maintenance and repairs, including lightning protection and NDT | K5: Include summary of key operational and/or mainteanance activity undertaken in the year, such as any major component upgrades and/or replacements
A29: Summary of Residue Handling for the reporting year
A31: Ash residues (known as Incinerator Bottom Ash or IBA) are currently sent to Castle Bromwich for reprocessing. This material is reprocessed by extracting further ferrous and non-ferrous metals and by crushing, trommelling and screening to produce a graded, quality material that is useable as substitute aggregate in such applications as road building. Ferrous metal removed from the IBA is sent to a steel manufacturer for recycling. Finer particulate matter, know as Air Pollution Control (APC) residues, removed from the flue gases by fabric filter is collected and sent to the Minosus Hazardous Waste underground storage facility in Cheshire or to Empire Works, a Veolia facility, for treatment. | K31: Include in here a summary of residue handling regimes and destinations

Sheet Perf. Form 1
A1: =+'Cover Page'!C39 -> 2023 | B1: Annual Reporting Performance Form 1
A3: =+'Cover Page'!B31 -> Permit EPR/WP3239SJ | F3: Operator: | G3: =+'Cover Page'!B37 -> Veolia ES Birmingham Limited
A4: Facility: | B4: =+'Cover Page'!B33:I33 -> Tyseley Energy from Waste Plant | F4: Form: | G4: Performance 1
A6: Reporting Period from: | D6: 2023-01-01 | F6: to: | G6: 2023-12-31
A8: =+A1 -> 2023 | B8: Annual Reporting of Waste Disposal and Recovery
A9: Waste Description | C9: Disposal Route(s) | E9: Disposal Tonnes | G9: Recovery Tonnes | I9: % / tonne of waste incinerated
A10: 1) Hazardous Wastes
A11: APC Residues | C11: D12 | E11: ='Operational Data'!G34 -> 8213.7 | I11: =IF((E11+G11)>0,(E11+G11)/'Operational Data'!$G$21, "-") -> 0.02265601363
A12: IBA | I12: =IF((E12+G12)>0,(E12+G12)/'Operational Data'!$G$21, "-") -> -
A13: Interceptor waste | C13: D09 | E13: ='Operational Data'!G37 -> 244.4 | I13: =IF((E13+G13)>0,(E13+G13)/'Operational Data'!$G$21, "-") -> 0.0006741334273
I14: =IF((E14+G14)>0,(E14+G14)/'Operational Data'!$G$21, "-") -> -
A15: Total Hazardous Waste | E15: =SUM(E11:F14) -> 8458.1 | G15: =SUM(G11:H14) -> 0 | I15: =IF((E15+G15)>0,(E15+G15)/'Operational Data'!$G$21, "-") -> 0.02333014706
A17: 2) Non-Hazardous Wastes
A18: IBA | C18: R03 | G18: ='Operational Data'!G35 -> 72795.67 | I18: =IF((E18+G18)>0,(E18+G18)/'Operational Data'!$G$21, "-") -> 0.2007937582
A19: Ferrous Metal | C19: R04 | G19: ='Operational Data'!G36 -> 3594.64 | I19: =IF((E19+G19)>0,(E19+G19)/'Operational Data'!$G$21, "-") -> 0.009915167688
A20: Process Water | E20: ='Operational Data'!G42-154095 -> 9746.275226 | G20: ='Operational Data'!G42-E20 -> 154095 | I20: =IF((E20+G20)>0,(E20+G20)/'Operational Data'!$G$21, "-") -> 0.4519266792
A21: Wooden packaging | C21: R03 | G21: ='Operational Data'!G38 -> 55.02 | I21: =IF((E21+G21)>0,(E21+G21)/'Operational Data'!$G$21, "-") -> 0.0001517627707
I22: =IF((E22+G22)>0,(E22+G22)/'Operational Data'!$G$21, "-") -> -
A23: Total Non-Hazardous Waste | E23: =SUM(E18:F22) -> 9746.275226 | G23: =SUM(G18:H22) -> 230540.33 | I23: =IF((E23+G23)>0,(E23+G23)/'Operational Data'!$G$21, "-") -> 0.6627873679
A24: TOTAL WASTE | E24: =+E23+E15 -> 18204.37523 | G24: =+G23+G15 -> 230540.33 | I24: =IF((E24+G24)>0,(E24+G24)/'Operational Data'!$G$21, "-") -> 0.6861175149
A26: Operator’s comments :
A31: =+A1 -> 2023 | B31: Annual Reporting of Water and Other Raw Material Usage
A32: Raw Material | E32: Usage | G32: Unit | H32: Specific Useage | J32: Unit
A33: Mains Water | E33: =+'Operational Data'!G42 -> 163841.2752 | G33: m3 | H33: =IF(E33>0,E33/'Operational Data'!$G$21,"-") -> 0.4519266792 | J33: m3/te
A34: Total Water | E34: =+'Operational Data'!G43+'Operational Data'!G42 -> 163841.2752 | G34: m3 | H34: =IF(E34>0,E34/'Operational Data'!$G$21,"-") -> 0.4519266792 | J34: m3/te
A35: Urea / Ammonia | E35: =+'Operational Data'!G44 -> 566157.5 | G35: kg | H35: =IF(E35>0,E35/'Operational Data'!$G$21,"-") -> 1.5616436 | J35: kg/te
A36: Activated Carbon | E36: =+'Operational Data'!G46 -> 110042.152 | G36: kg | H36: =IF(E36>0,E36/'Operational Data'!$G$21,"-") -> 0.3035314774 | J36: kg/te
A37: Lime / hydrated lime / Sodium Bicarb. | E37: =+'Operational Data'!G47 -> 1909900 | G37: kg | H37: =IF(E37>0,E37/'Operational Data'!$G$21,"-") -> 5.268115518 | J37: kg/te
A39: Operator’s comments :
A43: =+A31 -> 2023 | B43: Annual Reporting of other performance indicators
A44: Parameter | C44: Results by Line
C45: A1 | D45: A2 | E45: A3 | F45: A4 | G45: A5 | I45: Turbine 1 | J45: Turbine 2
A46: Operating hours for the year, hours | C46: ='Operational Data'!G53 -> 7758.5 | D46: ='Operational Data'!G54 -> 7972 | I46: ='Operational Data'!G59 -> 6992.5
A47: Number of periods of abnormal operation, qty.
A48: Cumulative hours of abnormal operation for this year, hours
A50: Operator’s comments :
A54: Signed: | B54: Scott Francis | G54: Date: | H54: 2024-01-30

Sheet Energy Form 1
A1: =+'Cover Page'!C39 -> 2023 | B1: Annual Reporting of Energy Usage/Export
A3: =+'Cover Page'!B31 -> Permit EPR/WP3239SJ | F3: Operator: | G3: =+'Cover Page'!B37 -> Veolia ES Birmingham Limited
A5: Facility: | B5: =+'Cover Page'!B33:I33 -> Tyseley Energy from Waste Plant | F5: Form: | G5: Energy 1
A7: Reporting Period from: | D7: =+'Perf. Form 1'!D6:E6 -> 2023-01-01 | F7: to: | G7: =+'Perf. Form 1'!G6:H6 -> 2023-12-31
A9: Energy Source | D9: Energy Usage | F9: Unit | G9: Specific Useage (KWh/tonne incinerated
A10: Electricity Produced | D10: =+'Operational Data'!G24 -> 166477 | F10: MWh | G10: =+'Operational Data'!H24 -> 459.1968518
A11: Electricity Imported | D11: =+'Operational Data'!G27 -> 3365.7347 | F11: MWh | G11: =+'Operational Data'!H27 -> 9.283773603
A12: Electricity Exported | D12: =+'Operational Data'!G25 -> 144706.7841 | F12: MWh | G12: =+'Operational Data'!H25 -> 399.1476281
A13: Gas Oil | D13: ='Operational Data'!G48 -> 1474654.074 | F13: ltrs | G13: ='Operational Data'!H48 -> 4.06756794
A14: Steam/hot water exported | D14: =+'Operational Data'!G30 -> 0 | F14: GWh | G14: =+'Operational Data'!H30 -> -
A18: Operator’s comments :
A29: Signed: | B29: Scott Francis | G29: Date: | H29: 2024-01-30

Sheet Permit Compliance
A1: =+'Cover Page'!$B$29 -> Annual Performance Report 2023 | E1: =+'Cover Page'!$B$33 -> Tyseley Energy from Waste Plant
A3: Summary of Permit Compliance
A5: Compliance with permit limits for continuously monitored pollutants
A7: The plant met its emission limits as shown in the table below:
A8: Substance | C8: Percentage time compliant during operationNote 1 | L8: Notes:
C9: Half-hourly limit | F9: Daily limit | L9: Note 1: Please report to 2 decimal places, i.e. xx.xx% Note 2: Please provide a brief summary of each notification or non-compliance in the table (rather than just referring to notifications that were sent to the Regulator), including stating the value of measured result for any ELV exceedances.
A10: Particulates | C10: 1 | F10: 1
A11: Oxides of nitrogen | C11: 1 | F11: 1
A12: Sulphur dioxide | C12: 1 | F12: 1
A13: Carbon monoxide | C13: xx.xx % or 100.00% 95% of 10-min averages | F13: 1
A14: Total organic carbon | C14: 0.99 | F14: 1
A15: Hydrogen chloride | C15: 1 | F15: 1
A16: Hydrogen fluoride | C16: xx.xx % | F16: xx.xx %
C17: xx.xx % | F17: xx.xx %
A19: Summary of any notifications or non-compliances under the permit
A20: Date | B20: Summary of notification or non-compliance [including Line/Reference]Note 2 | E20: Reason | H20: Measures taken to prevent reoccurrence
A21: 2023-08-11 | B21: TOC half hourly spike on Line 2 at 24,4mg/m3 against the half hourly limit of 20mg/m3 | E21: Gas explosion in the furnace | H21: Reduced boiler load and carried out inspection
A27: Summary of any complaints received and actions to taken to resolve them.
A28: Date | B28: Summary of complaint [including Line/Reference] | E28: Reason * | H28: Measures taken to prevent reoccurrence
E34: * including whether substantiated by the operator or the EA

Sheet Improvements
A1: =+'Cover Page'!$B$29 -> Annual Performance Report 2023 | E1: =+'Cover Page'!$B$33 -> Tyseley Energy from Waste Plant
A3: Summary of Plant Improvements
A5: Summary of any efficiency improvements that have been completed within the year.
A6: n/a
A16: Summary of any permit improvement conditions that have been completed within the year and the resulting environmental benefits.
A17: IC2 - Submitted IC3 - Submitted
A27: Summary of any changes to the plant or operating techniques which required a variation to the permit and a summary of the resulting environmental impact.
A28: WI BREF Permit variation received November 2023. Lower ELVs introduced since the 3rd of December 2023, where applicable and under the new permit, a number of Improvement Conditions are required. Two of those are already submitted.
A38: Summary of any other improvements made to the plant or planned to be made and a summary of the resulting environmental benefits.
A39: n/a

Sheet Public Liasion
A1: =+'Cover Page'!$B$29 -> Annual Performance Report 2023 | E1: =+'Cover Page'!$B$33 -> Tyseley Energy from Waste Plant
A3: Details of Public & Stakeholder Liasion
A5: Summary of events held during the reporting year.
A6: Date | C6: Description
A7: Bi-monthly | C7: Meetings with Birmingham City Council
A16: List of events planned for next year
A17: Date | C17: Description
A18: Bi-monthly | C18: Meetings with Birmingham City Council
A29: If you wish to be involved in the public liasion programme, please contact _https://www.birmingham.veolia.co.uk/contact#no-back________________

Sheet CO2 N2O
A1: =+'Cover Page'!$B$29 -> Annual Performance Report 2023 | C1: =+'Cover Page'!$B$33 -> Tyseley Energy from Waste Plant
A3: Carbon dioxide emissions and biogenic content of waste inputs | F3: Notes:
A5: Carbon dioxide emissions (all types of plant)
B6: Annual mass of carbon dioxide released | C6: tonnes | D6: 409804
B7: Annual mass of carbon dioxide released per tonne of waste burned | C7: t CO2 / t waste | D7: =D6/'Operational Data'!G21 -> 1.130370602
B8: Annual mass of carbon dioxide released per MWh of energy exported | C8: t CO2 / MWh export | D8: =D6/'Operational Data'!G25 -> 2.831961215
B9: Description of how annual carbon dioxide mass emission has been calculated. See Note 1 | C9: CEM data | F9: Note 1: Where available, data from CO2 CEMS should be used. Otherwise, only where no CEMS data is available, a suitable emissions factor should be used based on the tonnage of waste burned e.g.0.942 tCO2/t waste as per Tolvik report 2022, or other justified emissions factor - refer to embedded Environment Agency guidance note above or updated version for suitable descriptive text.
A10: Nitrous oxide emissions (only plants which use ammonia or urea to abate NOx emissions)
B11: Annual mass emissions of nitrous oxide | C11: tonnes N2O | D11: 2.22
B12: Description of how annual nitrous oxide mass emission has been calculated See Note 2 | C12: CEM data | F12: Note 2: Where available, data from N2O CEMS should be used. If no CEMS data is available, from periodic monitoring. Otherwise, a suitable emissions factor should be used based on the tonnage of waste burned e.g. 0.0981 kgN20/t waste as per 2021 Pollution Inventory data for plants with urea-based SNCR - refer to embedded Environment Agency guidance note above or updated version for suitable descriptive text.
A13: Total annual carbon dioxide and nitrous oxide emissions. See Note 3. | C13: tonnes CO2e | D13: =(D11*298)+D6 -> 410465.56 | F13: Note 3: Total annual carbon dioxide and nitrous oxide emissions reported as carbon dioxide equivalent where 1 tonne nitrous oxide is equivalent to 298 tonne carbon dioxide
A14: Biogenic CO2 emissions (See Note 4) | F14: Note 4: Only plants combusting residual municipal waste, refuse derived fuel or solid recovered fuel
B15: Percentage of total carbon dioxide emissions arising from biogenic waste | C15: %
B16: No. of measurements undertaken | C16: Number
B17: Description of how percentage biogenic carbon dioxide emissions have been measured or calculated. See Note 5 | F17: Note 5: Examples include direct measurement via C14 method or BIOMA software - refer to embedded Environment Agency guidance note above or updated version for suitable descriptive text, quoting standards where relevant. Otherwise, as an approximation (and in lieu of any more accurate metrics which may be developed in future), the measured or estimated biogenic fraction by net calorific value can be assumed to be the same as the biogenic CO2 fraction of the total CO2 emissions from the plant.
A18: Biogenic fraction of waste feedstock (See Note 4)
B19: Yearly average biogenic percentage of the waste by net calorific value (NCV) | C19: 0.518 | D19: ='Operational Data'!G21*0.518 -> 187795.4643
B20: If sampling undertaken, no. of samples used to ascertain average biogenic % above | C20: Number
B21: Description of how biogenic percentage (by NCV) has been calculated or estimated. See Note 6 | C21: 2017 WRAP data | F21: Note 6: Where available, data from waste sampling should be used; otherwise, an estimated figure with justification can be used, or a figure assumed on the basis of a national average e.g. 2017 WRAP data for residual waste of 51.8% biogenic energy content - refer to embedded Environment Agency guidance note above or updated version for suitable descriptive text, quoting standards where relevant.
B23: Comments:

Sheet Residue Quality
A1: =+'Cover Page'!$B$29 -> Annual Performance Report 2023 | E1: =+'Cover Page'!$B$33 -> Tyseley Energy from Waste Plant
A3: Residue Quality Monitoring Requirements
A5: Summary of monitoring undertaken and compliance
A6: As per permit requirements
A13: Commentary on any specific events
A14: Date & Event | C14: Description
A27: Residue Quality Monitoring Results
A28: Parameter (unit) | C28: Limit | D28: Normal Operation
D29: Bottom ash | F29: APC Residues
A30: Loss on Ignition (average %) | C30: <5% | D30: 0.032
A31: Total Organic Carbon (average %) | C31: <3%
A32: No. of Assessments Undertaken | C32: ---
A33: No. of Hazardous Results | C33: ---
A35: Comments :

Sheet Water
A1: =+'Cover Page'!$B$29 -> Annual Performance Report 2023 | E1: =+'Cover Page'!$B$33 -> Tyseley Energy from Waste Plant
A3: Emissions to Water
A5: Summary of monitoring undertaken and compliance
A6: As per Severn Trent Conditions of Consent to the discharge trade effluent to the public foul water sewer
A13: Commentary on any specific events
A14: Date & Event | C14: Description
A22: Emissions to Water / Sewer
A23: Parameter | D23: Monitoring Frequency | F23: Limit | G23: Target | H23: Max. | I23: Average
A24: Outlet 1
A25: SULPHATE | D25: Periodic | F25: 1500 | H25: 848 | I25: 660.5
A26: CHRIOMIUM (Cr) | D26: Periodic | F26: 5 | H26: 0.046 | I26: 0.0305
A27: COPPER (Cu) | D27: Periodic | F27: 5 | H27: 0.91 | I27: 0.705
A28: LEAD (Pb) | D28: Periodic | F28: 5 | H28: 0.4 | I28: 0.3
A29: NICKEL (Ni) | D29: Periodic | F29: 5 | H29: 0.055 | I29: 0.045
A30: ZINC (Zn) | D30: Periodic | F30: 10 | H30: 0.66 | I30: 0.595
A31: SULPHIDE as S | D31: Periodic | F31: 1 | H31: 0.197 | I31: 0.1092
A32: pH | D32: Periodic | F32: 12.5 | H32: 12.4 | I32: 12.2
A33: Outlet 2
A34: SULPHATE | D34: Periodic | F34: 1500
A35: CHRIOMIUM (Cr) | D35: Periodic | F35: 5
A36: COPPER (Cu) | D36: Periodic | F36: 5
A37: LEAD (Pb) | D37: Periodic | F37: 5
A38: NICKEL (Ni) | D38: Periodic | F38: 5
A39: ZINC (Zn) | D39: Periodic | F39: 10
A40: SULPHIDE as S | D40: Periodic | F40: 1
A41: pH | D41: Periodic | F41: 12.5

Sheet Air (periodic)
A1: =+'Cover Page'!$B$29 -> Annual Performance Report 2023 | E1: =+'Cover Page'!$B$33 -> Tyseley Energy from Waste Plant
A3: Emissions to Air (periodically monitored)
A5: Summary of monitoring undertaken, standards used and compliance | M5: Notes:
A6: As per permit requirements | M6: Template may require adjustment for any bespoke monitoring requirements of permit - please also check that all default ELV values, reference periods and the stated oxygen reference value match those for your plant, and edit if necessary!
A9: Results of emissions to air that are periodically monitored - oxygen reference 11%
A10: Substance | C10: Ref. Period | D10: Emission Limit Value* | H10: Ref. Period | K10: Average | M10: User to add additional tables as necessary, depending on whether quarterly or bi-annual reporting is required for the compliance year
F11: A1(Q1&Q2) | G11: A2(Q1&Q2) | I11: A1(Q3&Q4) | J11: A2(Q3&Q4) | K11: A1 | L11: A2
A12: Hydrogen fluoride | C12: 1 hr | D12: 2 mg/m3 | F12: 0.1 | G12: 0.11 | H12: 30min x 3 | I12: 0.06333333333 | J12: 0.05333333333 | K12: =AVERAGE(F12,I12) -> 0.08166666667 | L12: =AVERAGE(G12,J12) -> 0.08166666667
A13: Cd and Th and their compounds | C13: 0.5-8hrs | D13: 0.05 mg/m3 | F13: 0.00062 | G13: 0.00063 | H13: 30min x 3 | I13: 0.002066666667 | J13: 0.0016 | K13: =AVERAGE(F13,I13) -> 0.001343333333 | L13: =AVERAGE(G13,J13) -> 0.001115
A14: Hg and its compounds | C14: 0.5-8hrs | D14: 0.05 mg/m3 | F14: 0.00053 | G14: 0.0026 | H14: 30min x 3 | I14: 0.0008166666667 | J14: 0.016 | K14: 0.0006733333333 | L14: 0.0093 | M14: * Denotes limits that were in force until 2 December 2023; from 3 December 2023 the following new limits applied (those not listed remained unchanged):
A15: Sb, As, Pb, Cr, Co, Cu, Mn, Ni, V and their compounds | C15: 0.5-8hrs | D15: 0.5 mg/m3 | F15: 0.054 | G15: 0.019 | H15: 30min x 3 | I15: 0.066 | J15: 0.05466666667 | K15: 0.06 | L15: 0.03683333333
A16: Chlorinated Dioxins & Furans (I-TEQ) | C16: 6-8hrs | D16: 0.1 ng/m3 | F16: 0.007 | G16: 0.013 | H16: 6-8hrs | I16: 0.031 | J16: 0.15 | K16: 0.019 | L16: 0.0815 | M16: Substance | N16: Reference Period | O16: Emission Limit Value
A17: PCBs (WHO-TEQ Humans / Mammals) | C17: 6-8hrs | D17: None set ng/m3 | F17: 0.003 | G17: 0.00081 | H17: 6-8hrs | I17: 0.0015 | J17: 0.0065 | K17: 0.00225 | L17: 0.003655
A18: PCBs (WHO-TEQ Fish) | C18: 6-8hrs | D18: None set ng/m3 | F18: 0.00019 | G18: 5.5e-05 | H18: 6-8hrs | I18: 8.4e-05 | J18: 0.00035 | K18: 0.000137 | L18: 0.0002025 | M18: Hydrogen fluoride | N18: Average of three consecutive measurements of at least 30 minutes each | O18: 1 mg/m3
A19: PCBs (WHO-TEQ Birds) | C19: 6-8hrs | D19: None set ng/m3 | F19: 0.017 | G19: 0.0078 | H19: 6-8hrs | I19: 0.0051 | J19: 0.019 | K19: 0.01105 | L19: 0.0134 | M19: Cd and Th and their compounds | N19: Average of three consecutive measurements of at least 30 minutes each | O19: 0.02 mg/m3
A20: Dioxins & Furans (WHO-TEQ Humans / Mammals) | C20: 6-8hrs | D20: None set ng/m3 | F20: 0.0074 | G20: 0.015 | H20: 6-8hrs | I20: 0.033 | J20: 0.16 | K20: 0.0202 | L20: 0.0875 | M20: Hg and its compounds | N20: Average of three consecutive measurements of at least 30 minutes each | O20: 0.02 mg/m3
A21: Dioxins & Furans (WHO-TEQ Fish) | C21: 6-8hrs | D21: None set ng/m3 | F21: 0.0068 | G21: 0.014 | H21: 6-8hrs | I21: 0.031 | J21: 0.16 | K21: 0.0189 | L21: 0.087 | M21: Sb, As, Pb, Cr, Co, Cu, Mn, Ni, V and their compounds | N21: Average of three consecutive measurements of at least 30 minutes each | O21: 0.3 mg/m3
A22: Dioxins & Furans (WHO-TEQ Birds) | C22: 6-8hrs | D22: None set ng/m3 | F22: 0.012 | G22: 0.029 | H22: 6-8hrs | I22: 0.065 | J22: 0.34 | K22: 0.0385 | L22: 0.1845 | M22: Dioxins & Furans (I-TEQ) | N22: 6-8hrs | O22: 0.06 ng/m3
A23: Brominated Dioxins & Furans (I-TEQ) | C23: 6-8hrs | D23: None set ng/m3 | F23: 0.0012 | G23: 0.001 | H23: 6-8hrs | I23: 0.00165 | J23: 0.00124 | K23: 0.001425 | L23: 0.00112
A24: Nitrous Oxide | C24: 1 hr | D24: None set mg/m3 | F24: 0.85 | G24: 0.85 | H24: n/a | I24: n/a | J24: n/a | K24: 0.85 | L24: 0.85
A25: Ammonia | C25: 1 hr | D25: None set mg/m3 | F25: 0.77 | G25: 0.47 | H25: n/a | I25: n/a | J25: n/a | K25: 0.77 | L25: 0.47
A26: Total PAH | C26: 6-8hrs | D26: None set µg/m3 | F26: 0.14 | G26: 0.21 | H26: 6-8hrs | I26: 0.1 | J26: 0.86 | K26: 0.12 | L26: 0.535
A27: Anthanthrene | C27: 6-8hrs | D27: None set µg/m3 | F27: 0.0015 | G27: 0.0014 | H27: 6-8hrs | I27: 0.0019 | J27: 0.0014 | K27: 0.0017 | L27: 0.0014
A28: Benzo(a)anthracene | C28: 6-8hrs | D28: None set µg/m3 | F28: 0.0015 | G28: 0.0014 | H28: 6-8hrs | I28: 0.0019 | J28: 0.0014 | K28: 0.0017 | L28: 0.0014
A29: Benzo(a)pyrene | C29: 6-8hrs | D29: None set µg/m3 | F29: 0.0015 | G29: 0.0014 | H29: 6-8hrs | I29: 0.0019 | J29: 0.0014 | K29: 0.0017 | L29: 0.0014
A30: Benzo(b)fluoranthene | C30: 6-8hrs | D30: None set µg/m3 | F30: 0.0015 | G30: 0.0014 | H30: 6-8hrs | I30: 0.0019 | J30: 0.0014 | K30: 0.0017 | L30: 0.0014
A31: Benzo(b)naptho(2,1-d) thiophene | C31: 6-8hrs | D31: None set µg/m3 | F31: 0.0015 | G31: 0.0014 | H31: 6-8hrs | I31: 0.0019 | J31: 0.0014 | K31: 0.0017 | L31: 0.0014
A32: Benzo(c)phenanthrene | C32: 6-8hrs | D32: None set µg/m3 | F32: 0.0015 | G32: 0.0014 | H32: 6-8hrs | I32: 0.0019 | J32: 0.0014 | K32: 0.0017 | L32: 0.0014
A33: Benzo(ghi)perylene | C33: 6-8hrs | D33: None set µg/m3 | F33: 0.0026 | G33: 0.0044 | H33: 6-8hrs | I33: 0.0073 | J33: 0.0015 | K33: 0.00495 | L33: 0.00295
A34: Benzo(k)fluoranthene | C34: 6-8hrs | D34: None set µg/m3 | F34: 0.0015 | G34: 0.0014 | H34: 6-8hrs | I34: 0.0019 | J34: 0.0014 | K34: 0.0017 | L34: 0.0014
A35: Cholanthrene | C35: 6-8hrs | D35: None set µg/m3 | F35: 0.0015 | G35: 0.0014 | H35: 6-8hrs | I35: 0.0019 | J35: 0.0014 | K35: 0.0017 | L35: 0.0014
A36: Chrysene | C36: 6-8hrs | D36: None set µg/m3 | F36: 0.0015 | G36: 0.0014 | H36: 6-8hrs | I36: 0.0021 | J36: 0.0016 | K36: 0.0018 | L36: 0.0015
A37: Cyclopenta(cd)pyrene | C37: 6-8hrs | D37: None set µg/m3 | F37: 0.0015 | G37: 0.0014 | H37: 6-8hrs | I37: 0.0019 | J37: 0.0018 | K37: 0.0017 | L37: 0.0016
A38: Dibenzo(ai)pyrene | C38: 6-8hrs | D38: None set µg/m3 | F38: 0.0015 | G38: 0.0014 | H38: 6-8hrs | I38: 0.0019 | J38: 0.0014 | K38: 0.0017 | L38: 0.0014
A39: Dibenzo(ah)anthracene | C39: 6-8hrs | D39: None set µg/m3 | F39: 0.0015 | G39: 0.0014 | H39: 6-8hrs | I39: 0.0019 | J39: 0.0014 | K39: 0.0017 | L39: 0.0014
A40: Fluoranthene | C40: 6-8hrs | D40: None set µg/m3 | F40: 0.012 | G40: 0.024 | H40: 6-8hrs | I40: 0.029 | J40: 0.034 | K40: 0.0205 | L40: 0.029
A41: Indeno(123-cd) pyrene | C41: 6-8hrs | D41: None set µg/m3 | F41: 0.0015 | G41: 0.0014 | H41: 6-8hrs | I41: 0.0019 | J41: 0.0014 | K41: 0.0017 | L41: 0.0014
A42: Naphthalene | C42: 6-8hrs | D42: None set µg/m3 | F42: 0.11 | G42: 0.16 | H42: 6-8hrs | I42: 0.041 | J42: 0.8 | K42: 0.0755 | L42: 0.48
A43: Comments :
A44: Brominated dioxins & furans periodic emissions results added into the table above. The new site permit has been received November 2023, consequently Q1/Q2 periodic emissions was carried under the permit applicable at that period of time and Q3/Q4 periodic emissions was carried out following the new permit requirements which was received November 2023. Nitrous oxide and ammonia were a permit requirement when Q1/Q2 periodic emissions were taking place and although those gases were already measured continiously by the CEM system they were included in the periodic emissions monitoring campaign in order to fulfill the requirements of the permit applicable to site at that period of time. The table above has been modified to reflect those changes. The PAH monitoring is an annual requirement under the new permit, however two monitoring campaings were carried out within the year, in order to capture, each one of those, the requirements of the permit which was applicable for the site at that time of the year and the time of the emissions monitoring campaign was taking place. The chlorinated Dioxins & Furans (I-TEQ) periodic emission result for A2 in Q3/Q4 showed an exceedance with a figure of 0.15ng/m3 vs the ELV of 0.1ng/m3. A retest has been carried out and the result of the retest is 0.027ng/m3. The retest was carried out after the new lower ELVs came into force on the 3rd of December 2023, this test result is compliant with both old and new Dioxins & Furans ELV of 0.06ng/m3. The high result is reported in the table above as this was the orginal test.

Sheet Air (CEMS)
A1: =+'Cover Page'!$B$29 -> Annual Performance Report 2023 | I1: =+'Cover Page'!$B$33 -> Tyseley Energy from Waste Plant
A3: Emissions to Air (continously monitored)
N4: Notes:
A5: Summary of monitoring undertaken, standards used and compliance | N5: Template may require adjustment for any bespoke monitoring requirements of permit
A6: BS EN 14181 & MCertS CEM system | N6: Please check that all default ELV values match those for your plant and edit if necessary!
N7: Report to 1 decimal place
A11: Results of emissions to air that are continuously monitored (maximum and average values for each line) - oxygen reference 11%
A12: Substance | B12: Reference Period | C12: Emission Limit Value** | D12: A1 | F12: A2 | H12: A3 | J12: A4 | L12: A5
D13: Max. | E13: Avg. | F13: Max. | G13: Avg. | H13: Max. | I13: Avg. | J13: Max. | K13: Avg. | L13: Max. | M13: Avg. | N13: ** Denotes limits that were in force until 2 December 2023; from 3 December 2023 the following new limits applied (those not listed remained unchanged):
A14: Oxides of nitrogen | B14: Daily mean | C14: 200 mg/m3 | D14: =NOx!O19 -> 183.9 | E14: =NOx!N19 -> 161.8083333 | F14: =NOx!O35 -> 188.9 | G14: =NOx!N35 -> 159.5083333
B15: Daily mean | C15: 180 mg/m3 | D15: =NOx!O20 -> 169.9 | E15: =NOx!N20 -> 158.2 | F15: =NOx!O36 -> 170.2 | G15: =NOx!N36 -> 159
B16: ½ hourly mean | C16: 400 mg/m3 | D16: =NOx!M19 -> 264.5 | E16: =NOx!L19 -> 161.95 | F16: =NOx!M35 -> 318.1 | G16: =NOx!L35 -> 159.525 | N16: Substance | O16: Reference Period | P16: Emission Limit Value
A17: Particulates | B17: Daily mean | C17: 10 mg/m3 | D17: =Particulates!O19 -> 3.4 | E17: =Particulates!N19 -> 0.4333333333 | F17: =Particulates!O35 -> 4.5 | G17: =Particulates!N35 -> 0.8583333333
B18: Daily mean | C18: 5 mg/m3 | D18: =Particulates!O20 -> 3.4 | E18: =Particulates!N20 -> 0.4 | F18: =Particulates!O36 -> 0.7 | G18: =Particulates!N36 -> 0.6
B19: ½ hourly mean | C19: 30 mg/m3 | D19: =Particulates!M19 -> 7.1 | E19: =Particulates!L19 -> 0.4833333333 | F19: =Particulates!M35 -> 25.4 | G19: =Particulates!L35 -> 0.875 | N19: Oxides of nitrogen | O19: Daily mean | P19: 180 mg/m3
A20: Total Organic Carbon | B20: Daily mean | C20: 10 mg/m3 | D20: =TOC!O19 -> 1.9 | E20: =TOC!N19 -> 0.3333333333 | F20: =TOC!O34 -> 2.8 | G20: =TOC!N34 -> 1.775 | N20: Particulates | O20: Daily mean | P20: 5 mg/m3
B21: ½ hourly mean | C21: 20 mg/m3 | D21: =TOC!M19 -> 10.9 | E21: =TOC!L19 -> 0.3666666667 | F21: =TOC!M34 -> 24.4 | G21: =TOC!L34 -> 1.858333333 | N21: Hydrogen chloride | O21: Daily mean | P21: 8 mg/m3
A22: Hydrogen chloride | B22: Daily mean | C22: 10 mg/m3 | D22: =HCl!O19 -> 8.3 | E22: =HCl!N19 -> 5.558333333 | F22: =HCl!O35 -> 8.7 | G22: =HCl!N35 -> 6.325 | N22: Sulphur dioxide | O22: Daily mean | P22: 40 mg/m3
B23: Daily mean | C23: 8 mg/m3 | D23: =HCl!O20 -> 5.7 | E23: =HCl!N20 -> 4.5 | F23: =HCl!O36 -> 7.1 | G23: =HCl!N36 -> 5
B24: ½ hourly mean | C24: 60 mg/m3 | D24: =HCl!M19 -> 45.4 | E24: =HCl!L19 -> 5.6 | F24: =HCl!M35 -> 55.1 | G24: =HCl!L35 -> 6.383333333 | N24: Ammonia | O24: Daily mean | P24: 15 mg/m3
A25: Sulphur dioxide | B25: Daily mean | C25: 50 mg/m3 | D25: ='SO2'!O19 -> 33.7 | E25: ='SO2'!N19 -> 8.758333333 | F25: ='SO2'!O35 -> 32 | G25: ='SO2'!N35 -> 6.958333333
B26: Daily mean | C26: 40 mg/m3 | D26: ='SO2'!O20 -> 18.6 | E26: ='SO2'!N20 -> 8.2 | F26: ='SO2'!O36 -> 7.5 | G26: ='SO2'!N36 -> 3.7
B27: ½ hourly mean | C27: 200 mg/m3 | D27: ='SO2'!M19 -> 179.4 | E27: ='SO2'!L19 -> 8.925 | F27: ='SO2'!M35 -> 194.1 | G27: ='SO2'!L35 -> 11.1
A28: Carbon monoxide | B28: Daily mean | C28: 50 mg/m3 | D28: ='CO 95% 10 min'!Q22 -> 26.3 | E28: ='CO 95% 10 min'!P22 -> 11.66666667 | F28: ='CO 95% 10 min'!Q37 -> 19.7 | G28: ='CO 95% 10 min'!P37 -> 10.05
B29: ½ hourly mean * | C29: 100 mg/m3 *
B30: 95%ile 10-min avg * | C30: 150 mg/m3 * | D30: ='CO 95% 10 min'!M22 -> 61.86666667 | E30: ='CO 95% 10 min'!N22 -> 11.70833333 | F30: ='CO 95% 10 min'!M37 -> 62.23333333 | G30: ='CO 95% 10 min'!N37 -> 10.225
A31: Ammonia | B31: Daily mean | C31: No limit set until 03/12/23 | D31: ='NH3'!O19 -> 11.5 | E31: ='NH3'!N19 -> 1.958333333 | F31: ='NH3'!O35 -> 24.7 | G31: ='NH3'!N35 -> 2.133333333
B32: Daily mean | C32: 15 mg/m3 | D32: ='NH3'!O20 -> 4.5 | E32: ='NH3'!N20 -> 1.6 | F32: ='NH3'!O36 -> 4.6 | G32: ='NH3'!N36 -> 1.8
A34: Comments :
A35: New WI BREF ELVs in force since the 3rd of December 2023. The table above has been modified accordingly in order to capture this change. The new ELVs stated in this table are capturing the maximum and average figures for the whole of December 2023 (since the 1st of December 2023). The rows with the ELVs prior to the new ELVs are caputuring the whole annual data (12 months).

Sheet HCl
A1: =+'Cover Page'!$B$29 -> Annual Performance Report 2023 | E1: =+'Cover Page'!$B$33 -> Tyseley Energy from Waste Plant
A3: Monitoring of Hydrogen Chloride emissions | D3: Whole Installation | G3: See Notes in Cell Q3 | J3: =+A3 -> Monitoring of Hydrogen Chloride emissions | N3: Per Combustion Line | Q3: Notes:
Q4: User to add logic to complete Whole installation, Table A5:G18. From the data in Per Combustion Line, Table J6:O79, subject to No. of lines installed
A5: mg/Nm3 | B5: 1/2 Hourly Reference Periods | E5: Daily Reference Periods
A6: =+'Cover Page'!C39 -> 2023 | B6: 1/2 hourly HCl ELV | C6: Monthly 1/2 hourly mean | D6: Highest 1/2 hourly maximum | E6: Daily HCl ELV* | F6: Monthly daily mean | G6: Highest daily maximum | J6: =+A6 -> 2023 | K6: mg/Nm3 | L6: Monthly 1/2 hourly mean | M6: Monthly 1/2 hourly maximum | N6: Monthly daily mean | O6: Monthly daily maximum
A7: Jan | B7: 60 | C7: =AVERAGE(L7,L23) -> 5.6 | D7: =MAX(M7,M23) -> 37.9 | E7: 10 | F7: =AVERAGE(N7,N23) -> 5.55 | G7: =MAX(O7,O23) -> 7.2 | J7: A1 | K7: Jan | L7: 5.3 | M7: 37.9 | N7: 5.3 | O7: 6.7
A8: Feb | B8: 60 | C8: 6 | D8: 46.5 | E8: 10 | F8: 5.95 | G8: 7.9 | K8: Feb | L8: 5.6 | M8: 45.3 | N8: 5.6 | O8: 6.7
A9: Mar | B9: 60 | C9: 6.3 | D9: 42.9 | E9: 10 | F9: 6.25 | G9: 8.1 | K9: Mar | L9: 5.9 | M9: 32.2 | N9: 5.8 | O9: 8 | Q9: Whole Installation table A5:G18:
A10: Apr | B10: 60 | C10: 6.7 | D10: 55.1 | E10: 10 | F10: 6.65 | G10: 8.3 | K10: Apr | L10: 6.3 | M10: 34.4 | N10: 6.3 | O10: 8.3 | Q10: Mean: for 1/2 hourly and daily periods calculate mean of values across all operational combustion lines for the month
A11: May | B11: 60 | C11: 6.35 | D11: 34 | E11: 10 | F11: 6.3 | G11: 7.7 | K11: May | L11: 6 | M11: 31.6 | N11: 5.9 | O11: 7.7
A12: Jun | B12: 60 | C12: 4.7 | D12: 27.1 | E12: 10 | F12: 4.45 | G12: 7.5 | K12: Jun | L12: 3.4 | M12: 14.1 | N12: 3.3 | O12: 5.5
A13: Jul | B13: 60 | C13: 5.9 | D13: 39.7 | E13: 10 | F13: 5.85 | G13: 7.5 | K13: Jul | L13: 5.8 | M13: 27.9 | N13: 5.8 | O13: 7.5 | Q13: Maximum: for 1/2 hourly and daily periods use the highest value across all operational combustion lines for the month
A14: Aug | B14: 60 | C14: 6.25 | D14: 29.1 | E14: 10 | F14: 6.25 | G14: 7.5 | K14: Aug | L14: 5.9 | M14: 12.2 | N14: 5.8 | O14: 7.1
A15: Sep | B15: 60 | C15: 6.8 | D15: 45.3 | E15: 10 | F15: 6.8 | G15: 8.3 | K15: Sep | L15: 6.7 | M15: 41 | N15: 6.7 | O15: 7.6
A16: Oct | B16: 60 | C16: 6.2 | D16: 45.4 | E16: 10 | F16: 6.2 | G16: 7.9 | K16: Oct | L16: 5.7 | M16: 45.4 | N16: 5.7 | O16: 7.3
A17: Nov | B17: 60 | C17: 6.35 | D17: 48.5 | E17: 10 | F17: 6.3 | G17: 8.7 | K17: Nov | L17: 6.1 | M17: 45.3 | N17: 6 | O17: 8.1
A18: Dec | B18: 60 | C18: 4.75 | D18: 34.2 | E18: 8 | F18: 4.75 | G18: 7.1 | K18: Dec | L18: 4.5 | M18: 32.1 | N18: 4.5 | O18: 5.7
E19: * ELV reduced to 8 mg/Nm3 on 3 December 2023 | K19: Annual | L19: =AVERAGE(L7:L18) -> 5.6 | M19: =MAX(M7:M18) -> 45.4 | N19: =AVERAGE(N7:N18) -> 5.558333333 | O19: =MAX(O7:O18) -> 8.3
K20: Dec | L20: 4.5 | M20: 32.1 | N20: 4.5 | O20: 5.7
J22: =+A6 -> 2023 | K22: mg/Nm3 | L22: Monthly 1/2 hourly mean | M22: Monthly 1/2 hourly maximum | N22: Monthly daily mean | O22: Monthly daily maximum
J23: A2 | K23: Jan | L23: 5.9 | M23: 29.1 | N23: 5.8 | O23: 7.2
K24: Feb | L24: 6.4 | M24: 46.5 | N24: 6.3 | O24: 7.9
K25: Mar | L25: 6.7 | M25: 42.9 | N25: 6.7 | O25: 8.1
K26: Apr | L26: 7.1 | M26: 55.1 | N26: 7 | O26: 8.3
K27: May | L27: 6.7 | M27: 34 | N27: 6.7 | O27: 7.7
K28: Jun | L28: 6 | M28: 27.1 | N28: 5.6 | O28: 7.5
K29: Jul | L29: 6 | M29: 39.7 | N29: 5.9 | O29: 7.3
K30: Aug | L30: 6.6 | M30: 29.1 | N30: 6.7 | O30: 7.5
K31: Sep | L31: 6.9 | M31: 45.3 | N31: 6.9 | O31: 8.3
K32: Oct | L32: 6.7 | M32: 31.1 | N32: 6.7 | O32: 7.9
K33: Nov | L33: 6.6 | M33: 48.5 | N33: 6.6 | O33: 8.7
K34: Dec | L34: 5 | M34: 34.2 | N34: 5 | O34: 7.1
K35: Annual | L35: =AVERAGE(L23:L34) -> 6.383333333 | M35: =MAX(M23:M34) -> 55.1 | N35: =AVERAGE(N23:N34) -> 6.325 | O35: =MAX(O23:O34) -> 8.7
K36: Dec | L36: 5 | M36: 34.2 | N36: 5 | O36: 7.1
J38: =+A6 -> 2023 | K38: mg/Nm3 | L38: Monthly 1/2 hourly mean | M38: Monthly 1/2 hourly maximum | N38: Monthly daily mean | O38: Monthly daily maximum
J39: A3 | K39: Jan
K40: Feb
K41: Mar
K42: Apr
K43: May
K44: Jun
K45: Jul
K46: Aug
K47: Sep
K48: Oct
K49: Nov
A50: Comments : | K50: Dec
K51: Annual | L51: =AVERAGE(L39:L50) ->  | M51: =MAX(M39:M50) -> 0 | N51: =AVERAGE(N39:N50) ->  | O51: =MAX(O39:O50) -> 0
J53: =+A6 -> 2023 | K53: mg/Nm3 | L53: Monthly 1/2 hourly mean | M53: Monthly 1/2 hourly maximum | N53: Monthly daily mean | O53: Monthly daily maximum
J54: A4 | K54: Jan
K55: Feb
K56: Mar
K57: Apr
K58: May
K59: Jun
K60: Jul
K61: Aug
K62: Sep
K63: Oct
K64: Nov
K65: Dec
K66: Annual | L66: =AVERAGE(L54:L65) ->  | M66: =MAX(M54:M65) -> 0 | N66: =AVERAGE(N54:N65) ->  | O66: =MAX(O54:O65) -> 0
J68: =+A6 -> 2023 | K68: mg/Nm3 | L68: Monthly 1/2 hourly mean | M68: Monthly 1/2 hourly maximum | N68: Monthly daily mean | O68: Monthly daily maximum
J69: A5 | K69: Jan
K70: Feb
K71: Mar
K72: Apr
K73: May
K74: Jun
K75: Jul
K76: Aug
K77: Sep
K78: Oct
K79: Nov
K80: Dec
K81: Annual | L81: =AVERAGE(L69:L80) ->  | M81: =MAX(M69:M80) -> 0 | N81: =AVERAGE(N69:N80) ->  | O81: =MAX(O69:O80) -> 0

Sheet SO2
A1: =+'Cover Page'!$B$29 -> Annual Performance Report 2023 | E1: =+'Cover Page'!$B$33 -> Tyseley Energy from Waste Plant
A3: Monitoring of Sulphur dioxide emissions | D3: Whole Installation | G3: See Notes in Cell Q3 | J3: =+A3 -> Monitoring of Sulphur dioxide emissions | N3: Per Combustion Line | Q3: Notes:
Q4: User to add logic to complete Whole installation, Table A5:G18. From the data in Per Combustion Line, Table J6:O79, subject to No. of lines installed
A5: mg/Nm3 | B5: 1/2 Hourly Reference Periods | E5: Daily Reference Periods
A6: =+'Cover Page'!C39 -> 2023 | B6: 1/2 hourly SO2 ELV | C6: Monthly 1/2 hourly mean | D6: Highest 1/2 hourly maximum | E6: Daily SO2 ELV* | F6: Monthly daily mean | G6: Highest daily maximum | J6: =+A6 -> 2023 | K6: mg/Nm3 | L6: Monthly 1/2 hourly mean | M6: Monthly 1/2 hourly maximum | N6: Monthly daily mean | O6: Monthly daily maximum
A7: Jan | B7: 200 | C7: =AVERAGE(L7,L23) -> 4.1 | D7: =MAX(M7,M23) -> 71.2 | E7: 50 | F7: =AVERAGE(N7,N23) -> 4 | G7: =MAX(O7,O23) -> 9.8 | J7: A1 | K7: Jan | L7: 4.1 | M7: 56.3 | N7: 4 | O7: 7.9
A8: Feb | B8: 200 | C8: =AVERAGE(L8,L24) -> 31 | D8: =MAX(M8,M24) -> 113.5 | E8: 50 | F8: =AVERAGE(N8,N24) -> 5.95 | G8: =MAX(O8,O24) -> 13.4 | K8: Feb | L8: 6.5 | M8: 113.5 | N8: 6.4 | O8: 13.4
A9: Mar | B9: 200 | C9: 5.9 | D9: 131 | E9: 50 | F9: 5.8 | G9: 24.1 | K9: Mar | L9: 7.5 | M9: 131 | N9: 7.3 | O9: 24.1 | Q9: Whole Installation table A5:G18:
A10: Apr | B10: 200 | C10: 7.3 | D10: 170.3 | E10: 50 | F10: 7.25 | G10: 18 | K10: Apr | L10: 6.8 | M10: 132.1 | N10: 6.7 | O10: 17.3 | Q10: Mean: for 1/2 hourly and daily periods calculate mean of values across all operational combustion lines for the month
A11: May | B11: 200 | C11: 5.55 | D11: 194.1 | E11: 50 | F11: 5.55 | G11: 16.7 | K11: May | L11: 5.1 | M11: 65.8 | N11: 5.1 | O11: 16.7
A12: Jun | B12: 200 | C12: 21.15 | D12: 146.2 | E12: 50 | F12: 21 | G12: 33.7 | K12: Jun | L12: 24.8 | M12: 146.2 | N12: 23.4 | O12: 33.7
A13: Jul | B13: 200 | C13: 11.25 | D13: 179.4 | E13: 50 | F13: 11.3 | G13: 32 | K13: Jul | L13: 11.3 | M13: 179.4 | N13: 11.4 | O13: 22.8 | Q13: Maximum: for 1/2 hourly and daily periods use the highest value across all operational combustion lines for the month
A14: Aug | B14: 200 | C14: 10.05 | D14: 146.6 | E14: 50 | F14: 9.65 | G14: 26.8 | K14: Aug | L14: 11 | M14: 146.6 | N14: 10.8 | O14: 26.8
A15: Sep | B15: 200 | C15: 4.15 | D15: 78.2 | E15: 50 | F15: 4.15 | G15: 9.7 | K15: Sep | L15: 4.7 | M15: 78.2 | N15: 4.7 | O15: 9.7
A16: Oct | B16: 200 | C16: 5 | D16: 142.8 | E16: 50 | F16: 4.95 | G16: 11.2 | K16: Oct | L16: 5.6 | M16: 142.8 | N16: 5.5 | O16: 11.2
A17: Nov | B17: 200 | C17: 8.75 | D17: 152.8 | E17: 50 | F17: 8.75 | G17: 23.6 | K17: Nov | L17: 11.5 | M17: 152.8 | N17: 11.6 | O17: 23.6
A18: Dec | B18: 200 | C18: 5.95 | D18: 129.6 | E18: 40 | F18: 5.95 | G18: 18.6 | K18: Dec | L18: 8.2 | M18: 129.6 | N18: 8.2 | O18: 18.6
E19: * ELV reduced to 40 mg/Nm3 on 3 December 2023 | K19: Annual | L19: =AVERAGE(L7:L18) -> 8.925 | M19: =MAX(M7:M18) -> 179.4 | N19: =AVERAGE(N7:N18) -> 8.758333333 | O19: =MAX(O7:O18) -> 33.7
K20: Dec | L20: 8.2 | M20: 129.6 | N20: 8.2 | O20: 18.6
J22: =+A6 -> 2023 | K22: mg/Nm3 | L22: Monthly 1/2 hourly mean | M22: Monthly 1/2 hourly maximum | N22: Monthly daily mean | O22: Monthly daily maximum
J23: A2 | K23: Jan | L23: 4.1 | M23: 71.2 | N23: 4 | O23: 9.8
K24: Feb | L24: 55.5 | M24: 97.8 | N24: 5.5 | O24: 13.2
K25: Mar | L25: 4.3 | M25: 100.6 | N25: 4.3 | O25: 9.1
K26: Apr | L26: 7.8 | M26: 170.3 | N26: 7.8 | O26: 18
K27: May | L27: 6 | M27: 194.1 | N27: 6 | O27: 14.1
K28: Jun | L28: 17.5 | M28: 128.9 | N28: 18.6 | O28: 30.8
K29: Jul | L29: 11.2 | M29: 132.3 | N29: 11.2 | O29: 32
K30: Aug | L30: 9.1 | M30: 137.7 | N30: 8.5 | O30: 20
K31: Sep | L31: 3.6 | M31: 48.6 | N31: 3.6 | O31: 6.7
K32: Oct | L32: 4.4 | M32: 72.8 | N32: 4.4 | O32: 8.6
K33: Nov | L33: 6 | M33: 118.5 | N33: 5.9 | O33: 13.2
K34: Dec | L34: 3.7 | M34: 129 | N34: 3.7 | O34: 7.5
K35: Annual | L35: =AVERAGE(L23:L34) -> 11.1 | M35: =MAX(M23:M34) -> 194.1 | N35: =AVERAGE(N23:N34) -> 6.958333333 | O35: =MAX(O23:O34) -> 32
K36: Dec | L36: 3.7 | M36: 129 | N36: 3.7 | O36: 7.5
J38: =+A6 -> 2023 | K38: mg/Nm3 | L38: Monthly 1/2 hourly mean | M38: Monthly 1/2 hourly maximum | N38: Monthly daily mean | O38: Monthly daily maximum
J39: A3 | K39: Jan
K40: Feb
K41: Mar
K42: Apr
K43: May
K44: Jun
K45: Jul
K46: Aug
K47: Sep
K48: Oct
K49: Nov
A50: Comments : | K50: Dec
K51: Annual | L51: =AVERAGE(L39:L50) ->  | M51: =MAX(M39:M50) -> 0 | N51: =AVERAGE(N39:N50) ->  | O51: =MAX(O39:O50) -> 0
J53: =+A6 -> 2023 | K53: mg/Nm3 | L53: Monthly 1/2 hourly mean | M53: Monthly 1/2 hourly maximum | N53: Monthly daily mean | O53: Monthly daily maximum
J54: A4 | K54: Jan
K55: Feb
K56: Mar
K57: Apr
K58: May
K59: Jun
K60: Jul
K61: Aug
K62: Sep
K63: Oct
K64: Nov
K65: Dec
K66: Annual | L66: =AVERAGE(L54:L65) ->  | M66: =MAX(M54:M65) -> 0 | N66: =AVERAGE(N54:N65) ->  | O66: =MAX(O54:O65) -> 0
J68: =+A6 -> 2023 | K68: mg/Nm3 | L68: Monthly 1/2 hourly mean | M68: Monthly 1/2 hourly maximum | N68: Monthly daily mean | O68: Monthly daily maximum
J69: A5 | K69: Jan
K70: Feb
K71: Mar
K72: Apr
K73: May
K74: Jun
K75: Jul
K76: Aug
K77: Sep
K78: Oct
K79: Nov
K80: Dec
K81: Annual | L81: =AVERAGE(L69:L80) ->  | M81: =MAX(M69:M80) -> 0 | N81: =AVERAGE(N69:N80) ->  | O81: =MAX(O69:O80) -> 0

Sheet NOx
A1: =+'Cover Page'!$B$29 -> Annual Performance Report 2023 | E1: =+'Cover Page'!$B$33 -> Tyseley Energy from Waste Plant
A3: Monitoring of Oxides of Nitrogen emissions | D3: Whole Installation | G3: See Notes in Cell Q3 | J3: =+A3 -> Monitoring of Oxides of Nitrogen emissions | N3: Per Combustion Line | Q3: Notes:
Q4: User to add logic to complete Whole installation, Table A5:G18. From the data in Per Combustion Line, Table J6:O79, subject to No. of lines installed
A5: mg/Nm3 | B5: 1/2 Hourly Reference Periods | E5: Daily Reference Periods
A6: =+'Cover Page'!C39 -> 2023 | B6: 1/2 hourly NOx ELV | C6: Monthly 1/2 hourly mean | D6: Highest 1/2 hourly maximum | E6: Daily NOx ELV* | F6: Monthly daily mean | G6: Highest daily maximum | J6: =+A6 -> 2023 | K6: mg/Nm3 | L6: Monthly 1/2 hourly mean | M6: Monthly 1/2 hourly maximum | N6: Monthly daily mean | O6: Monthly daily maximum
A7: Jan | B7: 400 | C7: =AVERAGE(L7,L23) -> 151.95 | D7: =MAX(M7,M23) -> 213.6 | E7: 200 | F7: =AVERAGE(N7,N23) -> 151.9 | G7: =MAX(O7,O23) -> 175.3 | J7: A1 | K7: Jan | L7: 158.7 | M7: 213.6 | N7: 158.6 | O7: 175.3
A8: Feb | B8: 400 | C8: =AVERAGE(L8,L24) -> 152.5 | D8: =MAX(M8,M24) -> 215.8 | E8: 200 | F8: =AVERAGE(N8,N24) -> 152.5 | G8: =MAX(O8,O24) -> 170.3 | K8: Feb | L8: 157.4 | M8: 213.9 | N8: 157.4 | O8: 170.3
A9: Mar | B9: 400 | C9: 160.2 | D9: 248.2 | E9: 200 | F9: 160.1 | G9: 178.4 | K9: Mar | L9: 162.7 | M9: 248.2 | N9: 162.5 | O9: 178.4 | Q9: Whole Installation table A5:G18:
A10: Apr | B10: 400 | C10: 162.2 | D10: 242.9 | E10: 200 | F10: 162.2 | G10: 183.9 | K10: Apr | L10: 162.6 | M10: 242.9 | N10: 162.5 | O10: 183.9 | Q10: Mean: for 1/2 hourly and daily periods calculate mean of values across all operational combustion lines for the month
A11: May | B11: 400 | C11: 166.2 | D11: 233.4 | E11: 200 | F11: 166.1 | G11: 174.3 | K11: May | L11: 165.3 | M11: 233.4 | N11: 165.2 | O11: 173.6
A12: Jun | B12: 400 | C12: 168.95 | D12: 318.1 | E12: 200 | F12: 169.05 | G12: 188.9 | K12: Jun | L12: 171.3 | M12: 221.6 | N12: 170.8 | O12: 174.8
A13: Jul | B13: 400 | C13: 172.1 | D13: 258.9 | E13: 200 | F13: 172 | G13: 181.7 | K13: Jul | L13: 172 | M13: 251.1 | N13: 171.9 | O13: 180.8 | Q13: Maximum: for 1/2 hourly and daily periods use the highest value across all operational combustion lines for the month
A14: Aug | B14: 400 | C14: 150.55 | D14: 228.9 | E14: 200 | F14: 150.05 | G14: 171.1 | K14: Aug | L14: 150.5 | M14: 228.9 | N14: 150.2 | O14: 171.1
A15: Sep | B15: 400 | C15: 141.35 | D15: 201.8 | E15: 200 | F15: 141.2 | G15: 154.9 | K15: Sep | L15: 140.4 | M15: 199.9 | N15: 140.2 | O15: 154.9
A16: Oct | B16: 400 | C16: 167.75 | D16: 264.5 | E16: 200 | F16: 167.8 | G16: 181.1 | K16: Oct | L16: 167.9 | M16: 264.5 | N16: 168 | O16: 180.1
A17: Nov | B17: 400 | C17: 176.5 | D17: 214.1 | E17: 200 | F17: 176.4 | G17: 180.9 | K17: Nov | L17: 176.4 | M17: 214.1 | N17: 176.2 | O17: 180.1
A18: Dec | B18: 400 | C18: 158.6 | D18: 228.4 | E18: 180 | F18: 158.6 | G18: 170.2 | K18: Dec | L18: 158.2 | M18: 228.4 | N18: 158.2 | O18: 169.9
E19: * ELV reduced to 180 mg/Nm3 on 3 December 2023 | K19: Annual | L19: =AVERAGE(L7:L18) -> 161.95 | M19: =MAX(M7:M18) -> 264.5 | N19: =AVERAGE(N7:N18) -> 161.8083333 | O19: =MAX(O7:O18) -> 183.9
K20: Dec | L20: 158.2 | M20: 228.4 | N20: 158.2 | O20: 169.9
J22: =+A6 -> 2023 | K22: mg/Nm3 | L22: Monthly 1/2 hourly mean | M22: Monthly 1/2 hourly maximum | N22: Monthly daily mean | O22: Monthly daily maximum
J23: A2 | K23: Jan | L23: 145.2 | M23: 212.8 | N23: 145.2 | O23: 155.7
K24: Feb | L24: 147.6 | M24: 215.8 | N24: 147.6 | O24: 159.5
K25: Mar | L25: 157.7 | M25: 239.5 | N25: 157.7 | O25: 174.8
K26: Apr | L26: 161.8 | M26: 241.6 | N26: 161.9 | O26: 172.4
K27: May | L27: 167.1 | M27: 211.3 | N27: 167 | O27: 174.3
K28: Jun | L28: 166.6 | M28: 318.1 | N28: 167.3 | O28: 188.9
K29: Jul | L29: 172.2 | M29: 258.9 | N29: 172.1 | O29: 181.7
K30: Aug | L30: 150.6 | M30: 218.3 | N30: 149.9 | O30: 170.4
K31: Sep | L31: 142.3 | M31: 201.8 | N31: 142.2 | O31: 150.4
K32: Oct | L32: 167.6 | M32: 240.5 | N32: 167.6 | O32: 181.1
K33: Nov | L33: 176.6 | M33: 208.8 | N33: 176.6 | O33: 180.9
K34: Dec | L34: 159 | M34: 216.6 | N34: 159 | O34: 170.2
K35: Annual | L35: =AVERAGE(L23:L34) -> 159.525 | M35: =MAX(M23:M34) -> 318.1 | N35: =AVERAGE(N23:N34) -> 159.5083333 | O35: =MAX(O23:O34) -> 188.9
K36: Dec | L36: 159 | M36: 216.6 | N36: 159 | O36: 170.2
J38: =+A6 -> 2023 | K38: mg/Nm3 | L38: Monthly 1/2 hourly mean | M38: Monthly 1/2 hourly maximum | N38: Monthly daily mean | O38: Monthly daily maximum
J39: A3 | K39: Jan
K40: Feb
K41: Mar
K42: Apr
K43: May
K44: Jun
K45: Jul
K46: Aug
K47: Sep
K48: Oct
K49: Nov
A50: Comments : | K50: Dec
K51: Annual | L51: =AVERAGE(L39:L50) ->  | M51: =MAX(M39:M50) -> 0 | N51: =AVERAGE(N39:N50) ->  | O51: =MAX(O39:O50) -> 0
J53: =+A6 -> 2023 | K53: mg/Nm3 | L53: Monthly 1/2 hourly mean | M53: Monthly 1/2 hourly maximum | N53: Monthly daily mean | O53: Monthly daily maximum
J54: A4 | K54: Jan
K55: Feb
K56: Mar
K57: Apr
K58: May
K59: Jun
K60: Jul
K61: Aug
K62: Sep
K63: Oct
K64: Nov
K65: Dec
K66: Annual | L66: =AVERAGE(L54:L65) ->  | M66: =MAX(M54:M65) -> 0 | N66: =AVERAGE(N54:N65) ->  | O66: =MAX(O54:O65) -> 0
J68: =+A6 -> 2023 | K68: mg/Nm3 | L68: Monthly 1/2 hourly mean | M68: Monthly 1/2 hourly maximum | N68: Monthly daily mean | O68: Monthly daily maximum
J69: A5 | K69: Jan
K70: Feb
K71: Mar
K72: Apr
K73: May
K74: Jun
K75: Jul
K76: Aug
K77: Sep
K78: Oct
K79: Nov
K80: Dec
K81: Annual | L81: =AVERAGE(L69:L80) ->  | M81: =MAX(M69:M80) -> 0 | N81: =AVERAGE(N69:N80) ->  | O81: =MAX(O69:O80) -> 0

Sheet TOC
A1: =+'Cover Page'!$B$29 -> Annual Performance Report 2023 | E1: =+'Cover Page'!$B$33 -> Tyseley Energy from Waste Plant
A3: Monitoring of Total organic carbon emissions | D3: Whole Installation | G3: See Notes in Cell Q3 | J3: =+A3 -> Monitoring of Total organic carbon emissions | N3: Per Combustion Line | Q3: Notes:
Q4: User to add logic to complete Whole installation, Table A5:G18. From the data in Per Combustion Line, Table J6:O79, subject to No. of lines installed
A5: mg/Nm3 | B5: 1/2 Hourly Reference Periods | E5: Daily Reference Periods
A6: =+'Cover Page'!C39 -> 2023 | B6: 1/2 hourly TOC ELV | C6: Monthly 1/2 hourly mean | D6: Highest 1/2 hourly maximum | E6: Daily TOC ELV | F6: Monthly daily mean | G6: Highest daily maximum | J6: =+A6 -> 2023 | K6: mg/Nm3 | L6: Monthly 1/2 hourly mean | M6: Monthly 1/2 hourly maximum | N6: Monthly daily mean | O6: Monthly daily maximum
A7: Jan | B7: 20 | C7: =AVERAGE(L7,L22) -> 0.9 | D7: =MAX(M7,M22) -> 8.8 | E7: 10 | F7: =AVERAGE(N7,N22) -> 0.9 | G7: =MAX(O7,O22) -> 2 | J7: A1 | K7: Jan | L7: 0.2 | M7: 8.8 | N7: 0.2 | O7: 0.6
A8: Feb | B8: 20 | C8: =AVERAGE(L8,L23) -> 0.95 | D8: =MAX(M8,M23) -> 3.7 | E8: 10 | F8: =AVERAGE(N8,N23) -> 0.9 | G8: =MAX(O8,O23) -> 1.9 | K8: Feb | L8: 0.2 | M8: 2.2 | N8: 0.2 | O8: 0.4
A9: Mar | B9: 20 | C9: 1 | D9: 7.5 | E9: 10 | F9: 0.95 | G9: 2 | K9: Mar | L9: 0.2 | M9: 1.7 | N9: 0.2 | O9: 0.4 | Q9: Whole Installation table A5:G18:
A10: Apr | B10: 20 | C10: 1.05 | D10: 8.1 | E10: 10 | F10: 1.05 | G10: 2.8 | K10: Apr | L10: 0.3 | M10: 4.7 | N10: 0.3 | O10: 0.7 | Q10: Mean: for 1/2 hourly and daily periods calculate mean of values across all operational combustion lines for the month
A11: May | B11: 20 | C11: 1.3 | D11: 6.5 | E11: 10 | F11: 1.25 | G11: 2.4 | K11: May | L11: 0.7 | M11: 5.3 | N11: 0.7 | O11: 1.3
A12: Jun | B12: 20 | C12: 1.4 | D12: 9.4 | E12: 10 | F12: 1.2 | G12: 2.8 | K12: Jun | L12: 0.6 | M12: 4.3 | N12: 0.4 | O12: 0.8
A13: Jul | B13: 20 | C13: 1.25 | D13: 10.9 | E13: 10 | F13: 1.15 | G13: 2.3 | K13: Jul | L13: 0.5 | M13: 10.9 | N13: 0.4 | O13: 1.9 | Q13: Maximum: for 1/2 hourly and daily periods use the highest value across all operational combustion lines for the month
A14: Aug | B14: 20 | C14: 1.3 | D14: 24.4 | E14: 10 | F14: 1.15 | G14: 2.3 | K14: Aug | L14: 0.5 | M14: 5 | N14: 0.4 | O14: 0.9
A15: Sep | B15: 20 | C15: 1.05 | D15: 7.8 | E15: 10 | F15: 1 | G15: 2 | K15: Sep | L15: 0.3 | M15: 2.7 | N15: 0.3 | O15: 1
A16: Oct | B16: 20 | C16: 1.1 | D16: 10.6 | E16: 10 | F16: 1.1 | G16: 2.1 | K16: Oct | L16: 0.4 | M16: 4.4 | N16: 0.4 | O16: 0.8
A17: Nov | B17: 20 | C17: 1.05 | D17: 7 | E17: 10 | F17: 1.05 | G17: 2.3 | K17: Nov | L17: 0.3 | M17: 2.4 | N17: 0.3 | O17: 0.6
A18: Dec | B18: 20 | C18: 1 | D18: 10.8 | E18: 10 | F18: 0.95 | G18: 2.2 | K18: Dec | L18: 0.2 | M18: 4.2 | N18: 0.2 | O18: 0.4
K19: Annual | L19: =AVERAGE(L7:L18) -> 0.3666666667 | M19: =MAX(M7:M18) -> 10.9 | N19: =AVERAGE(N7:N18) -> 0.3333333333 | O19: =MAX(O7:O18) -> 1.9
J21: =+A6 -> 2023 | K21: mg/Nm3 | L21: Monthly 1/2 hourly mean | M21: Monthly 1/2 hourly maximum | N21: Monthly daily mean | O21: Monthly daily maximum
J22: A2 | K22: Jan | L22: 1.6 | M22: 4.1 | N22: 1.6 | O22: 2
K23: Feb | L23: 1.7 | M23: 3.7 | N23: 1.6 | O23: 1.9
K24: Mar | L24: 1.8 | M24: 7.5 | N24: 1.7 | O24: 2
K25: Apr | L25: 1.8 | M25: 8.1 | N25: 1.8 | O25: 2.8
K26: May | L26: 1.9 | M26: 6.5 | N26: 1.8 | O26: 2.4
K27: Jun | L27: 2.2 | M27: 9.4 | N27: 2 | O27: 2.8
K28: Jul | L28: 2 | M28: 10.5 | N28: 1.9 | O28: 2.3
K29: Aug | L29: 2.1 | M29: 24.4 | N29: 1.9 | O29: 2.3
K30: Sep | L30: 1.8 | M30: 7.8 | N30: 1.7 | O30: 2
K31: Oct | L31: 1.8 | M31: 10.6 | N31: 1.8 | O31: 2.1
K32: Nov | L32: 1.8 | M32: 7 | N32: 1.8 | O32: 2.3
K33: Dec | L33: 1.8 | M33: 10.8 | N33: 1.7 | O33: 2.2
K34: Annual | L34: =AVERAGE(L22:L33) -> 1.858333333 | M34: =MAX(M22:M33) -> 24.4 | N34: =AVERAGE(N22:N33) -> 1.775 | O34: =MAX(O22:O33) -> 2.8
J36: =+A6 -> 2023 | K36: mg/Nm3 | L36: Monthly 1/2 hourly mean | M36: Monthly 1/2 hourly maximum | N36: Monthly daily mean | O36: Monthly daily maximum
J37: A3 | K37: Jan
K38: Feb
K39: Mar
K40: Apr
K41: May
K42: Jun
K43: Jul
K44: Aug
K45: Sep
K46: Oct
K47: Nov
A48: Comments : | K48: Dec
K49: Annual | L49: =AVERAGE(L37:L48) ->  | M49: =MAX(M37:M48) -> 0 | N49: =AVERAGE(N37:N48) ->  | O49: =MAX(O37:O48) -> 0
J51: =+A6 -> 2023 | K51: mg/Nm3 | L51: Monthly 1/2 hourly mean | M51: Monthly 1/2 hourly maximum | N51: Monthly daily mean | O51: Monthly daily maximum
J52: A4 | K52: Jan
K53: Feb
K54: Mar
K55: Apr
K56: May
K57: Jun
K58: Jul
K59: Aug
K60: Sep
K61: Oct
K62: Nov
K63: Dec
K64: Annual | L64: =AVERAGE(L52:L63) ->  | M64: =MAX(M52:M63) -> 0 | N64: =AVERAGE(N52:N63) ->  | O64: =MAX(O52:O63) -> 0
J66: =+A6 -> 2023 | K66: mg/Nm3 | L66: Monthly 1/2 hourly mean | M66: Monthly 1/2 hourly maximum | N66: Monthly daily mean | O66: Monthly daily maximum
J67: A5 | K67: Jan
K68: Feb
K69: Mar
K70: Apr
K71: May
K72: Jun
K73: Jul
K74: Aug
K75: Sep
K76: Oct
K77: Nov
K78: Dec
K79: Annual | L79: =AVERAGE(L67:L78) ->  | M79: =MAX(M67:M78) -> 0 | N79: =AVERAGE(N67:N78) ->  | O79: =MAX(O67:O78) -> 0

Sheet Particulates
A1: =+'Cover Page'!$B$29 -> Annual Performance Report 2023 | E1: =+'Cover Page'!$B$33 -> Tyseley Energy from Waste Plant
A3: Monitoring of Particulate matter emissions | D3: Whole Installation | G3: See Notes in Cell Q3 | J3: =+A3 -> Monitoring of Particulate matter emissions | N3: Per Combustion Line | Q3: Notes:
Q4: User to add logic to complete Whole installation, Table A5:G18. From the data in Per Combustion Line, Table J6:O79, subject to No. of lines installed
A5: mg/Nm3 | B5: 1/2 Hourly Reference Periods | E5: Daily Reference Periods
A6: =+'Cover Page'!C39 -> 2023 | B6: 1/2 hourly PM ELV | C6: Monthly 1/2 hourly mean | D6: Highest 1/2 hourly maximum | E6: Daily PM ELV* | F6: Monthly daily mean | G6: Highest daily maximum | J6: =+A6 -> 2023 | K6: mg/Nm3 | L6: Monthly 1/2 hourly mean | M6: Monthly 1/2 hourly maximum | N6: Monthly daily mean | O6: Monthly daily maximum
A7: Jan | B7: 30 | C7: =AVERAGE(L7,L23) -> 0.65 | D7: =MAX(M7,M23) -> 9.5 | E7: 10 | F7: =AVERAGE(N7,N23) -> 0.65 | G7: =MAX(O7,O23) -> 2.6 | J7: A1 | K7: Jan | L7: 0.9 | M7: 3.1 | N7: 0.9 | O7: 2.6
A8: Feb | B8: 30 | C8: =AVERAGE(L8,L24) -> 1.5 | D8: =MAX(M8,M24) -> 3.5 | E8: 10 | F8: =AVERAGE(N8,N24) -> 1.45 | G8: =MAX(O8,O24) -> 2.9 | K8: Feb | L8: 2.3 | M8: 3.5 | N8: 2.2 | O8: 2.9
A9: Mar | B9: 30 | C9: 0.65 | D9: 19.4 | E9: 10 | F9: 0.65 | G9: 4.5 | K9: Mar | L9: 0.4 | M9: 3.1 | N9: 0.4 | O9: 2.8 | Q9: Whole Installation table A5:G18:
A10: Apr | B10: 30 | C10: 0.4 | D10: 3.3 | E10: 10 | F10: 0.4 | G10: 0.8 | K10: Apr | L10: 0.2 | M10: 1.2 | N10: 0.2 | O10: 0.3 | Q10: Mean: for 1/2 hourly and daily periods calculate mean of values across all operational combustion lines for the month
A11: May | B11: 30 | C11: 0.45 | D11: 1.6 | E11: 10 | F11: 0.35 | G11: 0.8 | K11: May | L11: 0.2 | M11: 1.6 | N11: 0.1 | O11: 0.8
A12: Jun | B12: 30 | C12: 1.05 | D12: 25.4 | E12: 10 | F12: 0.95 | G12: 4.5 | K12: Jun | L12: 0.3 | M12: 7.1 | N12: 0.1 | O12: 0.4
A13: Jul | B13: 30 | C13: 1.1 | D13: 7.3 | E13: 10 | F13: 1.1 | G13: 2.6 | K13: Jul | L13: 0.2 | M13: 3.1 | N13: 0.2 | O13: 0.3 | Q13: Maximum: for 1/2 hourly and daily periods use the highest value across all operational combustion lines for the month
A14: Aug | B14: 30 | C14: 0.6 | D14: 5.3 | E14: 10 | F14: 0.6 | G14: 1.9 | K14: Aug | L14: 0.1 | M14: 2.1 | N14: 0.1 | O14: 0.2
A15: Sep | B15: 30 | C15: 0.45 | D15: 4.8 | E15: 10 | F15: 0.45 | G15: 1.2 | K15: Sep | L15: 0.2 | M15: 2.9 | N15: 0.2 | O15: 0.2
A16: Oct | B16: 30 | C16: 0.3 | D16: 3.4 | E16: 10 | F16: 0.3 | G16: 0.5 | K16: Oct | L16: 0.2 | M16: 0.6 | N16: 0.2 | O16: 0.3
A17: Nov | B17: 30 | C17: 0.45 | D17: 1.9 | E17: 10 | F17: 0.35 | G17: 0.7 | K17: Nov | L17: 0.3 | M17: 1.9 | N17: 0.2 | O17: 0.4
A18: Dec | B18: 30 | C18: 0.55 | D18: 4.2 | E18: 5 | F18: 0.5 | G18: 3.4 | K18: Dec | L18: 0.5 | M18: 4.2 | N18: 0.4 | O18: 3.4
E19: * ELV reduced to 5 mg/Nm3 on 3 December 2023 | K19: Annual | L19: =AVERAGE(L7:L18) -> 0.4833333333 | M19: =MAX(M7:M18) -> 7.1 | N19: =AVERAGE(N7:N18) -> 0.4333333333 | O19: =MAX(O7:O18) -> 3.4
K20: Dec | L20: 0.5 | M20: 4.2 | N20: 0.4 | O20: 3.4
J22: =+A6 -> 2023 | K22: mg/Nm3 | L22: Monthly 1/2 hourly mean | M22: Monthly 1/2 hourly maximum | N22: Monthly daily mean | O22: Monthly daily maximum
J23: A2 | K23: Jan | L23: 0.4 | M23: 9.5 | N23: 0.4 | O23: 1.3
K24: Feb | L24: 0.7 | M24: 2.1 | N24: 0.7 | O24: 0.8
K25: Mar | L25: 0.9 | M25: 19.4 | N25: 0.9 | O25: 4.5
K26: Apr | L26: 0.6 | M26: 3.3 | N26: 0.6 | O26: 0.8
K27: May | L27: 0.7 | M27: 1.4 | N27: 0.6 | O27: 0.8
K28: Jun | L28: 1.8 | M28: 25.4 | N28: 1.8 | O28: 4.5
K29: Jul | L29: 2 | M29: 7.3 | N29: 2 | O29: 2.6
K30: Aug | L30: 1.1 | M30: 5.3 | N30: 1.1 | O30: 1.9
K31: Sep | L31: 0.7 | M31: 4.8 | N31: 0.7 | O31: 1.2
K32: Oct | L32: 0.4 | M32: 3.4 | N32: 0.4 | O32: 0.5
K33: Nov | L33: 0.6 | M33: 1 | N33: 0.5 | O33: 0.7
K34: Dec | L34: 0.6 | M34: 1.7 | N34: 0.6 | O34: 0.7
K35: Annual | L35: =AVERAGE(L23:L34) -> 0.875 | M35: =MAX(M23:M34) -> 25.4 | N35: =AVERAGE(N23:N34) -> 0.8583333333 | O35: =MAX(O23:O34) -> 4.5
K36: Dec | L36: 0.6 | M36: 1.7 | N36: 0.6 | O36: 0.7
J38: =+A6 -> 2023 | K38: mg/Nm3 | L38: Monthly 1/2 hourly mean | M38: Monthly 1/2 hourly maximum | N38: Monthly daily mean | O38: Monthly daily maximum
J39: A3 | K39: Jan
K40: Feb
K41: Mar
K42: Apr
K43: May
K44: Jun
K45: Jul
K46: Aug
K47: Sep
K48: Oct
K49: Nov
A50: Comments : | K50: Dec
K51: Annual | L51: =AVERAGE(L39:L50) ->  | M51: =MAX(M39:M50) -> 0 | N51: =AVERAGE(N39:N50) ->  | O51: =MAX(O39:O50) -> 0
J53: =+A6 -> 2023 | K53: mg/Nm3 | L53: Monthly 1/2 hourly mean | M53: Monthly 1/2 hourly maximum | N53: Monthly daily mean | O53: Monthly daily maximum
J54: A4 | K54: Jan
K55: Feb
K56: Mar
K57: Apr
K58: May
K59: Jun
K60: Jul
K61: Aug
K62: Sep
K63: Oct
K64: Nov
K65: Dec
K66: Annual | L66: =AVERAGE(L54:L65) ->  | M66: =MAX(M54:M65) -> 0 | N66: =AVERAGE(N54:N65) ->  | O66: =MAX(O54:O65) -> 0
J68: =+A6 -> 2023 | K68: mg/Nm3 | L68: Monthly 1/2 hourly mean | M68: Monthly 1/2 hourly maximum | N68: Monthly daily mean | O68: Monthly daily maximum
J69: A5 | K69: Jan
K70: Feb
K71: Mar
K72: Apr
K73: May
K74: Jun
K75: Jul
K76: Aug
K77: Sep
K78: Oct
K79: Nov
K80: Dec
K81: Annual | L81: =AVERAGE(L69:L80) ->  | M81: =MAX(M69:M80) -> 0 | N81: =AVERAGE(N69:N80) ->  | O81: =MAX(O69:O80) -> 0

Sheet CO 0.5 hourly (hidden)
A1: =+'Cover Page'!$B$29 -> Annual Performance Report 2023 | E1: =+'Cover Page'!$B$33 -> Tyseley Energy from Waste Plant
A3: Monitoring of Carbon Monoxide (half hourly) | D3: Whole Installation | G3: See Notes in Cell Q3 | J3: =+A3 -> Monitoring of Carbon Monoxide (half hourly) | N3: Per Combustion Line | Q3: Notes:
A5: Please complete this tab for your plant if you have 1/2 hourly CO ELVs; otherwise, leave it blank and complete the CO 95% 10 min tab
Q7: User to add logic to complete Whole installation, Table A5:G18. From the data in Per Combustion Line, Table J6:O79, subject to No. of lines installed
A8: mg/Nm3 | B8: 1/2 Hourly Reference Periods | E8: Daily Reference Periods
A9: =+'Cover Page'!C39 -> 2023 | B9: 1/2 hourly CO ELV | C9: Monthly 1/2 hourly mean | D9: Highest 1/2 hourly maximum | E9: Daily CO ELV | F9: Monthly daily mean | G9: Highest daily maximum | J9: =+A9 -> 2023 | K9: mg/Nm3 | L9: Monthly 1/2 hourly mean | M9: Monthly 1/2 hourly maximum | N9: Monthly daily mean | O9: Monthly daily maximum
A10: Jan | B10: 100 | E10: 50 | J10: A1 | K10: Jan
A11: Feb | B11: =+B10 -> 100 | E11: =+E10 -> 50 | K11: Feb
A12: Mar | B12: =+B11 -> 100 | E12: =+E11 -> 50 | K12: Mar | Q12: Whole Installation table A5:G18:
A13: Apr | B13: 100 | E13: 50 | K13: Apr | Q13: Mean: for 1/2 hourly and daily periods calculate mean of values across all operational combustion lines for the month
A14: May | B14: 100 | E14: 50 | K14: May
A15: Jun | B15: 100 | E15: 50 | K15: Jun
A16: Jul | B16: 100 | E16: 50 | K16: Jul | Q16: Maximum: for 1/2 hourly and daily periods use the highest value across all operational combustion lines for the month
A17: Aug | B17: 100 | E17: 50 | K17: Aug
A18: Sep | B18: 100 | E18: 50 | K18: Sep
A19: Oct | B19: 100 | E19: 50 | K19: Oct
A20: Nov | B20: 100 | E20: 50 | K20: Nov
A21: Dec | B21: 100 | E21: 50 | K21: Dec
K22: Annual | L22: =AVERAGE(L10:L21) ->  | M22: =MAX(M10:M21) -> 0 | N22: =AVERAGE(N10:N21) ->  | O22: =MAX(O10:O21) -> 0
J24: =+A9 -> 2023 | K24: mg/Nm3 | L24: Monthly 1/2 hourly mean | M24: Monthly 1/2 hourly maximum | N24: Monthly daily mean | O24: Monthly daily maximum
J25: A2 | K25: Jan
K26: Feb
K27: Mar
K28: Apr
K29: May
K30: Jun
K31: Jul
K32: Aug
K33: Sep
K34: Oct
K35: Nov
K36: Dec
K37: Annual | L37: =AVERAGE(L25:L36) ->  | M37: =MAX(M25:M36) -> 0 | N37: =AVERAGE(N25:N36) ->  | O37: =MAX(O25:O36) -> 0
J39: =+A9 -> 2023 | K39: mg/Nm3 | L39: Monthly 1/2 hourly mean | M39: Monthly 1/2 hourly maximum | N39: Monthly daily mean | O39: Monthly daily maximum
J40: A3 | K40: Jan
K41: Feb
K42: Mar
K43: Apr
K44: May
K45: Jun
K46: Jul
K47: Aug
K48: Sep
K49: Oct
K50: Nov
A51: Comments : | K51: Dec
K52: Annual | L52: =AVERAGE(L40:L51) ->  | M52: =MAX(M40:M51) -> 0 | N52: =AVERAGE(N40:N51) ->  | O52: =MAX(O40:O51) -> 0
J54: =+A9 -> 2023 | K54: mg/Nm3 | L54: Monthly 1/2 hourly mean | M54: Monthly 1/2 hourly maximum | N54: Monthly daily mean | O54: Monthly daily maximum
J55: A4 | K55: Jan
K56: Feb
K57: Mar
K58: Apr
K59: May
K60: Jun
K61: Jul
K62: Aug
K63: Sep
K64: Oct
K65: Nov
K66: Dec
K67: Annual | L67: =AVERAGE(L55:L66) ->  | M67: =MAX(M55:M66) -> 0 | N67: =AVERAGE(N55:N66) ->  | O67: =MAX(O55:O66) -> 0
J69: =+A9 -> 2023 | K69: mg/Nm3 | L69: Monthly 1/2 hourly mean | M69: Monthly 1/2 hourly maximum | N69: Monthly daily mean | O69: Monthly daily maximum
J70: A5 | K70: Jan
K71: Feb
K72: Mar
K73: Apr
K74: May
K75: Jun
K76: Jul
K77: Aug
K78: Sep
K79: Oct
K80: Nov
K81: Dec
K82: Annual | L82: =AVERAGE(L70:L81) ->  | M82: =MAX(M70:M81) -> 0 | N82: =AVERAGE(N70:N81) ->  | O82: =MAX(O70:O81) -> 0

Sheet CO 95% 10 min
A1: =+'Cover Page'!$B$29 -> Annual Performance Report 2023 | E1: =+'Cover Page'!$B$33 -> Tyseley Energy from Waste Plant
A3: Monitoring of Carbon Monoxide (10-minute avg) | E3: Whole Installation | H3: See Notes in Cell S3 | J3: =+A3 -> Monitoring of Carbon Monoxide (10-minute avg) | O3: Per Combustion Line | Q3: Notes: | S3: Notes:
A5: Please complete this tab for your plant if you have 10-minute average CO ELVs; otherwise, leave it blank and complete the CO 0.5 hourly tab
S7: User to add logic to complete Whole installation, Table A5:H18. From the data in Per Combustion Line, Table K6:Q79, subject to No. of lines installed
A8: mg/Nm3 | B8: 10-minute Reference Periods | F8: Daily Reference Periods
A9: =+'Cover Page'!C39 -> 2023 | B9: 95%ile 10-min avg CO ELV | C9: 95%ile 10-min avg maximum | D9: Monthly CO 10-min avg mean | E9: 10-min avg maximum | F9: Daily CO ELV | G9: Monthly daily mean | H9: Highest daily maximum | K9: =+A9 -> 2023 | L9: mg/Nm3 | M9: 95%ile 10-min avg maximum | N9: Monthly CO 10-min avg mean | O9: 10-min avg maximum | P9: Monthly daily mean | Q9: Monthly daily maximum
A10: Jan | B10: 150 | C10: =MAX(M10,M25) -> 45.9 | D10: =AVERAGE(N10,N25) -> 8.9 | E10: =MAX(O10,O25) -> 354.1 | F10: 50 | G10: =AVERAGE(P10,P25) -> 8.7 | H10: =MAX(Q10,Q25) -> 21.1 | K10: A1 | L10: Jan | M10: 45.9 | N10: 10.1 | O10: 354.1 | P10: 10.1 | Q10: 21.1
A11: Feb | B11: =+B10 -> 150 | C11: =MAX(M11,M26) -> 65.8 | D11: =AVERAGE(N11,N26) -> 8.9 | E11: =MAX(O11,O26) -> 290.8 | F11: =+F10 -> 50 | G11: =AVERAGE(P11,P26) -> 8.85 | H11: =MAX(Q11,Q26) -> 15.9 | L11: Feb | M11: 65.8 | N11: 10.1 | O11: 244.1 | P11: 10.1 | Q11: 15.9
A12: Mar | B12: =+B11 -> 150 | C12: 57.5 | D12: 9.7 | E12: 239.8 | F12: =+F11 -> 50 | G12: 9.65 | H12: 16.2 | L12: Mar | M12: 24.9 | N12: 10 | O12: 176 | P12: 10 | Q12: 16.2 | S12: Whole Installation table A5:H18:
A13: Apr | B13: 150 | C13: 67.8 | D13: 9.8 | E13: 650.2 | F13: 50 | G13: 9.8 | H13: 19.5 | L13: Apr | M13: 66.8 | N13: 11.4 | O13: 315.9 | P13: 11.4 | Q13: 19.5 | S13: Mean: for 10-min and daily periods use average of all operational combustion lines.
A14: May | B14: 150 | C14: 68.7 | D14: 10.85 | E14: 308.5 | F14: 50 | G14: 10.85 | H14: 21.2 | L14: May | M14: 68.7 | N14: 12.5 | O14: 308.5 | P14: 12.5 | Q14: 21.2
A15: Jun | B15: 150 | C15: 80.4 | D15: 14.55 | E15: 266.6 | F15: 50 | G15: 14.35 | H15: 21.7 | L15: Jun | M15: 69.2 | N15: 15.4 | O15: 201.2 | P15: 15.3 | Q15: 21.7
A16: Jul | B16: 150 | C16: 66 | D16: 11.35 | E16: 358.1 | F16: 50 | G16: 11.2 | H16: 22.5 | L16: Jul | M16: 66 | N16: 13.1 | O16: 189.9 | P16: 13 | Q16: 22.5 | S16: Maximum: for 10-min and daily periods use the highest of all operational combustion lines in any month.
A17: Aug | B17: 150 | C17: 117.1 | D17: 12.9 | E17: 606.9 | F17: 50 | G17: 12.5 | H17: 26.3 | L17: Aug | M17: 117.1 | N17: 14 | O17: 337.5 | P17: 14 | Q17: 26.3
A18: Sep | B18: 150 | C18: 64.8 | D18: 9.4 | E18: 498.9 | F18: 50 | G18: 9.4 | H18: 17.6 | L18: Sep | M18: 63 | N18: 10.3 | O18: 486.4 | P18: 10.3 | Q18: 17.6
A19: Oct | B19: 150 | C19: 65 | D19: 11.65 | E19: 511.1 | F19: 50 | G19: 11.65 | H19: 18.4 | L19: Oct | M19: 62.6 | N19: 11.4 | O19: 264.8 | P19: 11.4 | Q19: 18.4
A20: Nov | B20: 150 | C20: 69.9 | D20: 12 | E20: 261.8 | F20: 50 | G20: 11.95 | H20: 17.8 | L20: Nov | M20: 57.4 | N20: 12 | O20: 261.8 | P20: 11.9 | Q20: 16.1
A21: Dec | B21: 150 | C21: 67.1 | D21: 11.6 | E21: 437.2 | F21: 50 | G21: 11.4 | H21: 19.7 | L21: Dec | M21: 35 | N21: 10.2 | O21: 320.2 | P21: 10 | Q21: 16.6
L22: Annual | M22: =AVERAGE(M10:M21) -> 61.86666667 | N22: =AVERAGE(N10:N21) -> 11.70833333 | O22: =MAX(O10:O21) -> 486.4 | P22: =AVERAGE(P10:P21) -> 11.66666667 | Q22: =MAX(Q10:Q21) -> 26.3
K24: =+A9 -> 2023 | L24: mg/Nm3 | M24: 95%ile 10-min avg maximum | N24: Monthly CO 10-min avg mean | O24: 10-min avg maximum | P24: Monthly daily mean | Q24: Monthly daily maximum
K25: A2 | L25: Jan | M25: 27.2 | N25: 7.7 | O25: 236.6 | P25: 7.3 | Q25: 9.6
L26: Feb | M26: 36.1 | N26: 7.7 | O26: 290.8 | P26: 7.6 | Q26: 11.5
L27: Mar | M27: 57.5 | N27: 9.4 | O27: 239.8 | P27: 9.3 | Q27: 13.4
L28: Apr | M28: 67.8 | N28: 8.2 | O28: 650.2 | P28: 8.2 | Q28: 15.7
L29: May | M29: 68.7 | N29: 9.2 | O29: 268.5 | P29: 9.2 | Q29: 15
L30: Jun | M30: 80.4 | N30: 13.7 | O30: 266.6 | P30: 13.4 | Q30: 19.4
L31: Jul | M31: 44.5 | N31: 9.6 | O31: 358.1 | P31: 9.4 | Q31: 13.4
L32: Aug | M32: 97.8 | N32: 11.8 | O32: 606.9 | P32: 11 | Q32: 16.6
L33: Sep | M33: 64.8 | N33: 8.5 | O33: 498.9 | P33: 8.5 | Q33: 14.4
L34: Oct | M34: 65 | N34: 11.9 | O34: 511.1 | P34: 11.9 | Q34: 17.9
L35: Nov | M35: 69.9 | N35: 12 | O35: 255.7 | P35: 12 | Q35: 17.8
L36: Dec | M36: 67.1 | N36: 13 | O36: 437.2 | P36: 12.8 | Q36: 19.7
L37: Annual | M37: =AVERAGE(M25:M36) -> 62.23333333 | N37: =AVERAGE(N25:N36) -> 10.225 | O37: =MAX(O25:O36) -> 650.2 | P37: =AVERAGE(P25:P36) -> 10.05 | Q37: =MAX(Q25:Q36) -> 19.7
K39: =+A9 -> 2023 | L39: mg/Nm3 | M39: 95%ile 10-min avg maximum | N39: Monthly CO 10-min avg mean | O39: 10-min avg maximum | P39: Monthly daily mean | Q39: Monthly daily maximum
K40: A3 | L40: Jan
L41: Feb
L42: Mar
L43: Apr
L44: May
L45: Jun
L46: Jul
L47: Aug
L48: Sep
L49: Oct
L50: Nov
A51: Comments : | L51: Dec
A52: Environment Agency explanatory note: The 10-minute average ELV is based on the “95th percentile”. In this case this means that 95% of the 10 minute averages in the relevant 24-hour period (i.e. 137) must be below 150 mg/Nm3, and 5% (i.e. 7) are allowed to be any value above 150 mg/Nm3. Whilst we expect operators to minimise CO emissions at all times, it is perfectly acceptable for the value of the maximum 10-minute average to be above 150 mg/Nm3, provided the 95th percentile ELV has been met for that period. | L52: Annual | M52: =AVERAGE(M40:M51) ->  | O52: =MAX(O40:O51) -> 0 | P52: =AVERAGE(P40:P51) ->  | Q52: =MAX(Q40:Q51) -> 0
K54: =+A9 -> 2023 | L54: mg/Nm3 | M54: 95%ile 10-min avg maximum | N54: Monthly CO 10-min avg mean | O54: 10-min avg maximum | P54: Monthly daily mean | Q54: Monthly daily maximum
K55: A4 | L55: Jan
L56: Feb
L57: Mar
L58: Apr
L59: May
L60: Jun
L61: Jul
L62: Aug
L63: Sep
L64: Oct
L65: Nov
L66: Dec
L67: Annual | M67: =AVERAGE(M55:M66) ->  | O67: =MAX(O55:O66) -> 0 | P67: =AVERAGE(P55:P66) ->  | Q67: =MAX(Q55:Q66) -> 0
K69: =+A9 -> 2023 | L69: mg/Nm3 | M69: 95%ile 10-min avg maximum | N69: Monthly CO 10-min avg mean | O69: 10-min avg maximum | P69: Monthly daily mean | Q69: Monthly daily maximum
K70: A5 | L70: Jan
L71: Feb
L72: Mar
L73: Apr
L74: May
L75: Jun
L76: Jul
L77: Aug
L78: Sep
L79: Oct
L80: Nov
L81: Dec
L82: Annual | M82: =AVERAGE(M70:M81) ->  | O82: =MAX(O70:O81) -> 0 | P82: =AVERAGE(P70:P81) ->  | Q82: =MAX(Q70:Q81) -> 0

Sheet NH3
A1: =+'Cover Page'!$B$29 -> Annual Performance Report 2023 | E1: =+'Cover Page'!$B$33 -> Tyseley Energy from Waste Plant
A3: Monitoring of Ammnonia emissions | D3: Whole Installation | G3: See Notes in Cell Q3 | J3: =+A3 -> Monitoring of Ammnonia emissions | N3: Per Combustion Line | Q3: Notes:
Q4: User to add logic to complete Whole installation, Table A5:G18. From the data in Per Combustion Line, Table J6:O79, subject to No. of lines installed
A5: mg/Nm3 | B5: 1/2 Hourly Reference Periods | E5: Daily Reference Periods
A6: =+'Cover Page'!C39 -> 2023 | B6: 1/2 hourly NH3 ELV | C6: Monthly 1/2 hourly mean | D6: Highest 1/2 hourly maximum | E6: Daily NH3 ELV* | F6: Monthly daily mean | G6: Highest daily maximum | J6: =+A6 -> 2023 | K6: mg/Nm3 | L6: Monthly 1/2 hourly mean | M6: Monthly 1/2 hourly maximum | N6: Monthly daily mean | O6: Monthly daily maximum
A7: Jan | B7: None | C7: =AVERAGE(L7,L23) -> 1.05 | D7: =MAX(M7,M23) -> 12.8 | E7: None | F7: =AVERAGE(N7,N23) -> 1.05 | G7: =MAX(O7,O23) -> 1.8 | J7: A1 | K7: Jan | L7: 0.9 | M7: 6.5 | N7: 0.9 | O7: 1.8
A8: Feb | B8: =+B7 -> None | C8: 0.9 | D8: 10 | E8: None | F8: 0.9 | G8: 1.7 | K8: Feb | L8: 0.8 | M8: 10 | N8: 0.8 | O8: 1.7
A9: Mar | B9: =+B8 -> None | C9: 1.1 | D9: 22.5 | E9: None | F9: 1.05 | G9: 3.6 | K9: Mar | L9: 1 | M9: 22.5 | N9: 1 | O9: 3.6 | Q9: Whole Installation table A5:G18:
A10: Apr | B10: None | C10: 1.15 | D10: 17.1 | E10: None | F10: 1.1 | G10: 2.3 | K10: Apr | L10: 1.1 | M10: 14.7 | N10: 1.1 | O10: 2.3 | Q10: Mean: for 1/2 hourly and daily periods calculate mean of values across all operational combustion lines for the month
A11: May | B11: None | C11: 1.05 | D11: 11.8 | E11: None | F11: 1 | G11: 2.3 | K11: May | L11: 1.1 | M11: 11.8 | N11: 1 | O11: 2.3
A12: Jun | B12: None | C12: 7.9 | D12: 53.4 | E12: None | F12: 8 | G12: 24.7 | K12: Jun | L12: 8.4 | M12: 41 | N12: 7.9 | O12: 11.5
A13: Jul | B13: None | C13: 3 | D13: 34.4 | E13: None | F13: 2.9 | G13: 5.7 | K13: Jul | L13: 2.5 | M13: 16.4 | N13: 2.4 | O13: 4.9 | Q13: Maximum: for 1/2 hourly and daily periods use the highest value across all operational combustion lines for the month
A14: Aug | B14: None | C14: 2.4 | D14: 22.6 | E14: None | F14: 2.3 | G14: 6.3 | K14: Aug | L14: 2.4 | M14: 22.6 | N14: 2.4 | O14: 6.3
A15: Sep | B15: None | C15: 1.35 | D15: 10.1 | E15: None | F15: 1.3 | G15: 2.3 | K15: Sep | L15: 1.3 | M15: 8.9 | N15: 1.3 | O15: 2.3
A16: Oct | B16: None | C16: 1.6 | D16: 17.2 | E16: None | F16: 1.6 | G16: 3.7 | K16: Oct | L16: 1.4 | M16: 10.2 | N16: 1.4 | O16: 2.5
A17: Nov | B17: None | C17: 1.65 | D17: 15.3 | E17: None | F17: 1.65 | G17: 4.4 | K17: Nov | L17: 1.7 | M17: 15.3 | N17: 1.7 | O17: 4.4
A18: Dec | B18: None | C18: 1.8 | D18: 14.2 | E18: 15 | F18: 1.7 | G18: 4.6 | K18: Dec | L18: 1.7 | M18: 12.2 | N18: 1.6 | O18: 4.5
E19: * ELV came into force on 3 December 2023 | K19: Annual | L19: =AVERAGE(L7:L18) -> 2.025 | M19: =MAX(M7:M18) -> 41 | N19: =AVERAGE(N7:N18) -> 1.958333333 | O19: =MAX(O7:O18) -> 11.5
K20: Dec | L20: 1.7 | M20: 12.2 | N20: 1.6 | O20: 4.5
J22: =+A6 -> 2023 | K22: mg/Nm3 | L22: Monthly 1/2 hourly mean | M22: Monthly 1/2 hourly maximum | N22: Monthly daily mean | O22: Monthly daily maximum
J23: A2 | K23: Jan | L23: 1.2 | M23: 12.8 | N23: 1.2 | O23: 1.8
K24: Feb | L24: 1 | M24: 5.1 | N24: 1 | O24: 1.4
K25: Mar | L25: 1.2 | M25: 9.8 | N25: 1.1 | O25: 2.3
K26: Apr | L26: 1.2 | M26: 17.1 | N26: 1.1 | O26: 2.3
K27: May | L27: 1 | M27: 6.3 | N27: 1 | O27: 1.5
K28: Jun | L28: 7.4 | M28: 53.4 | N28: 8.1 | O28: 24.7
K29: Jul | L29: 3.5 | M29: 34.4 | N29: 3.4 | O29: 5.7
K30: Aug | L30: 2.4 | M30: 18.6 | N30: 2.2 | O30: 4.7
K31: Sep | L31: 1.4 | M31: 10.1 | N31: 1.3 | O31: 2.3
K32: Oct | L32: 1.8 | M32: 17.2 | N32: 1.8 | O32: 3.7
K33: Nov | L33: 1.6 | M33: 12.8 | N33: 1.6 | O33: 2.7
K34: Dec | L34: 1.9 | M34: 14.2 | N34: 1.8 | O34: 4.6
K35: Annual | L35: =AVERAGE(L23:L34) -> 2.133333333 | M35: =MAX(M23:M34) -> 53.4 | N35: =AVERAGE(N23:N34) -> 2.133333333 | O35: =MAX(O23:O34) -> 24.7
K36: Dec | L36: 1.9 | M36: 14.2 | N36: 1.8 | O36: 4.6
J38: =+A6 -> 2023 | K38: mg/Nm3 | L38: Monthly 1/2 hourly mean | M38: Monthly 1/2 hourly maximum | N38: Monthly daily mean | O38: Monthly daily maximum
J39: A3 | K39: Jan
K40: Feb
K41: Mar
K42: Apr
K43: May
K44: Jun
K45: Jul
K46: Aug
K47: Sep
K48: Oct
K49: Nov
A50: Comments : | K50: Dec
A51: An indicated ELV value of zero in the table above means that no ammonia limit is/was set in the permit. | K51: Annual | L51: =AVERAGE(L39:L50) ->  | M51: =MAX(M39:M50) -> 0 | N51: =AVERAGE(N39:N50) ->  | O51: =MAX(O39:O50) -> 0
J53: =+A6 -> 2023 | K53: mg/Nm3 | L53: Monthly 1/2 hourly mean | M53: Monthly 1/2 hourly maximum | N53: Monthly daily mean | O53: Monthly daily maximum
J54: A4 | K54: Jan
K55: Feb
K56: Mar
K57: Apr
K58: May
K59: Jun
K60: Jul
K61: Aug
K62: Sep
K63: Oct
K64: Nov
K65: Dec
K66: Annual | L66: =AVERAGE(L54:L65) ->  | M66: =MAX(M54:M65) -> 0 | N66: =AVERAGE(N54:N65) ->  | O66: =MAX(O54:O65) -> 0
J68: =+A6 -> 2023 | K68: mg/Nm3 | L68: Monthly 1/2 hourly mean | M68: Monthly 1/2 hourly maximum | N68: Monthly daily mean | O68: Monthly daily maximum
J69: A5 | K69: Jan
K70: Feb
K71: Mar
K72: Apr
K73: May
K74: Jun
K75: Jul
K76: Aug
K77: Sep
K78: Oct
K79: Nov
K80: Dec
K81: Annual | L81: =AVERAGE(L69:L80) ->  | M81: =MAX(M69:M80) -> 0 | N81: =AVERAGE(N69:N80) ->  | O81: =MAX(O69:O80) -> 0
